Workbook

Sheet Conso Validation (hidden)
A8: =IF(_xll.EPMRetrieveData(,"CONSOLIDATED")=0,"CONSOLIDATED","IMPACTED") -> 

Sheet Cover Page
C20: T2
C27: Relations avec les investisseurs, BCE
C28: Richard Bengian
C29: 514-786-8219
C30: richard.bengian@bell.ca

Sheet BCE Inc. IS Summary p2
M1: BCE (1)
M2: Données opérationnelles consolidées
C5: T2 | D5: T2 | F5: Variation | G5: % de | I5: Cumul | J5: Cumul | L5: Variation | M5: % de
A6: (en millions de dollars canadiens, sauf les montants liés aux actions) (non audité) | C6: 2025 | D6: 2024 | F6: ($) | G6: variation | I6: 2025 | J6: 2024 | L6: ($) | M6: variation
A7: Produits d’exploitation
A8: Tirés des services | C8: 5267 | D8: 5308 | F8: -41 | G8: -0.007724189902 | I8: 10439 | J8: 10500 | L8: -61 | M8: -0.00580952381
A9: Tirés des produits | C9: 818 | D9: 697 | F9: 121 | G9: 0.1736011478 | I9: 1576 | J9: 1516 | L9: 60 | M9: 0.03957783641
A10: Total des produits d’exploitation | C10: 6085 | D10: 6005 | F10: 80 | G10: 0.01332223147 | I10: 12015 | J10: 12016 | L10: -1 | M10: 0
A11: Coûts d’exploitation | C11: -3411 | D11: -3308 | F11: -103 | G11: -0.03113663845 | I11: -6783 | J11: -6754 | L11: -29 | M11: -0.004293751851
A12: BAIIA ajusté (A) | C12: 2674 | D12: 2697 | F12: -23 | G12: -0.008527994067 | I12: 5232 | J12: 5262 | L12: -30 | M12: -0.005701254276
A13: Marge du BAIIA ajusté (B)(3) | C13: 43,9 % | D13: 0.4491257286 | G13: -1 | I13: 43,5 % | J13: 0.438 | M13: -0.3
A14: Coûts liés aux indemnités de départ, aux acquisitions et autres | C14: -41 | D14: -22 | F14: -19 | G14: -0.8636363636 | I14: -288 | J14: -251 | L14: -37 | M14: -0.1474103586
A15: Amortissement des immobilisations corporelles | C15: -949 | D15: -945 | F15: -4 | G15: -0.004232804233 | I15: -1890 | J15: -1891 | L15: 1 | M15: 0.0005288207298
A16: Amortissement des immobilisations incorporelles | C16: -338 | D16: -325 | F16: -13 | G16: -0.04 | I16: -669 | J16: -641 | L16: -28 | M16: -0.04368174727
A17: Charges financières
A18: Charges d’intérêts | C18: -442 | D18: -426 | F18: -16 | G18: -0.03755868545 | I18: -865 | J18: -842 | L18: -23 | M18: -0.02731591449
A19: Rendements nets au titre des régimes d’avantages postérieurs à l’emploi | C19: 26 | D19: 17 | F19: 9 | G19: 0.5294117647 | I19: 51 | J19: 33 | L19: 18 | M19: 0.5454545455
A20: Perte de valeur d’actifs | C20: -8 | D20: -60 | F20: 52 | G20: 0.8666666667 | I20: -17 | J20: -73 | L20: 56 | M20: 0.7671232877
A21: Autres (charges) produits | C21: -38 | D21: -101 | F21: 63 | G21: 0.6237623762 | I21: 270 | J21: -139 | L21: 409 | M21: n.s.
A22: Impôt sur le résultat | C22: -240 | D22: -231 | F22: -9 | G22: -0.03896103896 | I22: -497 | J22: -397 | L22: -100 | M22: -0.2518891688
A23: Bénéfice net | C23: 644 | D23: 604 | F23: 40 | G23: 0.06622516556 | I23: 1327 | J23: 1061 | L23: 266 | M23: 0.2507068803
A25: Bénéfice net attribuable aux :
A26: Actionnaires ordinaires | C26: 579 | D26: 537 | F26: 42 | G26: 0.0782122905 | I26: 1209 | J26: 939 | L26: 270 | M26: 0.2875399361
A27: Actionnaires privilégiés | C27: 40 | D27: 46 | F27: -6 | G27: -0.1304347826 | I27: 81 | J27: 93 | L27: -12 | M27: -0.1290322581
A28: Détenteurs de participations ne donnant pas le contrôle | C28: 25 | D28: 21 | F28: 4 | G28: 0.1904761905 | I28: 37 | J28: 29 | L28: 8 | M28: 0.275862069
A29: Bénéfice net | C29: 644 | D29: 604 | F29: 40 | G29: 0.06622516556 | I29: 1327 | J29: 1061 | L29: 266 | M29: 0.2507068803
A31: Bénéfice net par action ordinaire – de base et dilué | C31: 0.6319787303 | D31: 0.59 | F31: 0.04 | G31: 0.06779661017 | I31: 1.306179775 | J31: 1.03 | K31: 0 | L31: 0.28 | M31: 0.2718446602
A33: Dividendes par action ordinaire | C33: 0.4375 | D33: 0.9975 | F33: -0.56 | G33: -0.5614035088 | I33: 1.435 | J33: 1.995 | L33: -0.56 | M33: -0.2807017544
A34: Nombre moyen pondéré d’actions ordinaires en circulation – de base (en millions) | C34: 930.9 | D34: 912.3 | I34: 925.6 | J34: 912.3
A35: Nombre moyen pondéré d’actions ordinaires en circulation – dilué (en millions) | C35: 930.9 | D35: 912.3 | I35: 925.6 | J35: 912.3
A36: Nombre d’actions ordinaires en circulation (en millions) | C36: 932.5 | D36: 912.3 | I36: 932.5 | J36: 912.3
A38: Bénéfice net ajusté et BPA ajusté
A39: Bénéfice net attribuable aux actionnaires ordinaires | C39: 579 | D39: 537 | F39: 42 | G39: 0.0782122905 | I39: 1209 | J39: 939 | L39: 270 | M39: 0.2875399361
A40: Éléments de rapprochement :
A41: Coûts liés aux indemnités de départ, aux acquisitions et autres | C41: 41 | D41: 22 | F41: 19 | G41: 0.8636363636 | I41: 288 | J41: 251 | L41: 37 | M41: 0.1474103586
A42: Pertes nettes liées à la valeur de marché sur dérivés utilisés à titre de couverture économique des régimes de rémunération fondée sur des actions qui sont réglés en instruments de capitaux propres | C42: 43 | D42: 23 | F42: 20 | G42: 0.8695652174 | I42: 42 | J42: 113 | L42: -71 | M42: -0.6283185841
A43: Pertes nettes sur participations mises en équivalence dans des entreprises associées et des coentreprises | C43: 0 | D43: 93 | F43: -93 | G43: -1 | I43: 0 | J43: 93 | L43: -93 | M43: -1
A44: Pertes nettes sur placements | C44: 8 | D44: 2 | F44: 6 | G44: n.s. | I44: 10 | J44: 8 | L44: 2 | M44: 0.25
A45: Profits liés au remboursement anticipé de titres d'emprunt | C45: -91 | D45: 0 | F45: -91 | G45: n.s. | I45: -357 | J45: 0 | L45: -357 | M45: n.s.
A46: Perte de valeur d’actifs | C46: 8 | D46: 60 | F46: -52 | G46: -0.8666666667 | I46: 17 | J46: 73 | L46: -56 | M46: -0.7671232877
A47: Impôt lié aux éléments de rapprochement ci-dessus | C47: 4 | D47: -25 | F47: 29 | G47: n.s. | I47: 16 | J47: -110 | L47: 126 | M47: n.s.
A48: Participations ne donnant pas le contrôle liées aux éléments de rapprochement ci-dessus | C48: 0 | D48: 0 | F48: 0 | G48: n.s. | I48: 0 | J48: -1 | L48: 1 | M48: 1
A49: Bénéfice net ajusté (A) | C49: 592 | D49: 712 | F49: -120 | G49: -0.1685393258 | I49: 1225 | J49: 1366 | L49: -141 | M49: -0.1032210835
A50: BPA ajusté (A) | C50: 0.6256466706 | D50: 0.7773144799 | F50: -0.15 | G50: -0.1919720903 | I50: 1.32346586 | J50: 1.5 | L50: -0.18 | M50: -0.12
A51: n.s. : non significatif
A52: (A) | B52: Le BAIIA ajusté représente un total des mesures sectorielles, le bénéfice net ajusté est une mesure financière non conforme aux PCGR et le BPA ajusté est un ratio non conforme aux PCGR. Voir la note 2.3 Total des mesures sectorielles, la note 2.1 Mesures financières non conformes aux PCGR et la note 2.2 Ratios non conformes aux PCGR dans les notes annexes du présent rapport pour en savoir plus sur ces mesures.
A53: (B) | B53: La marge du BAIIA ajusté est définie comme le BAIIA ajusté divisé par les produits d’exploitation.

Sheet EPMFormattingSheet (hidden)
B1: EPM Formatting Sheet | Y1: 1 | Z1: FALSE
B3: Note: The format settings in lower sections overrides the ones in upper section if there are conflicts.
B5: Hierarchy Level Formatting | O5: Help
O6: Formatting and "Use" Column:
B7: Row | O7: In the "1000" and "Label" cells, define the format you want by using the standard Microsoft Office Excel cell formatting functions. By default, all the format settings are applied and "ALL" is displayed in the "Use" column. You can then specify which settings of the defined format you want to apply or define additional settings.To do so, double-click in a "Use" cell and define the format settings in the dialog box that opens, or directly enter the format settings in a "Use" cell, using a specific syntax, for example: (FontBold = Y) | (FontSize = 18).
E9: Data | H9: Use | I9: Header | L9: Use
D11: Default Format | F11: 10000 | H11: All | J11: Label | L11: All
D14: Base Level Format | F14: 10000 | H14: All | J14: Label | L14: All
D16: Formatting on Specific Level:
D18: =IF(Y1=2, "Level 1", IF(Z1=TRUE, IF(A26-1=0, "Lowest Level","Lowest Level -"&(A26-1)), "Level 1")) -> Level 1 | F18: 10000 | H18: All | J18: Label | L18: All
D21: =IF(Y1=2, "Level 2", IF(Z1=TRUE, IF(A26-2=0, "Lowest Level","Lowest Level -"&(A26-2)), "Level 2")) -> Level 2 | F21: 10000 | H21: All | J21: Label | L21: All | O21: Priority to Row or Column
O22: These options enable you to specify which one of the defined formats for rows or for columns will be applied first in case of conflicts. When you click the "Priority to Column" option, the "Column" section is displayed first in the formatting section and the "Row" section is displayed in second position in the formatting section and the precedence rules apply.
D24: =IF(Y1=2, "Level 3", IF(Z1=TRUE, IF(A26-3=0, "Lowest Level","Lowest Level -"&(A26-3)), "Level 3")) -> Level 3 | F24: 10000 | H24: All | J24: Label | L24: All
A26: 3
B28: Column
E30: Data | H30: Use | I30: Header | L30: Use
D32: Default Format | F32: 10000 | H32: All | J32: Label | L32: All | O32: Inner or Outer Dimension:
O33: If a row or column axis contains more than one dimension, you can specify which dimension you want the defined format to be applied to; "Inner dimension" being the last dimension, Outer dimension" being the first dimension in the axis.
D35: Base Level Format | F35: 10000 | H35: All | J35: Label | L35: All
D37: Formatting on Specific Level:
D39: =IF(Y1=2, "Level 1", IF(Z1=TRUE, IF(A47-1=0, "Lowest Level","Lowest Level -"&(A47-1)), "Level 1")) -> Level 1 | F39: 10000 | H39: All | J39: Label | L39: All
D42: =IF(Y1=2, "Level 2", IF(Z1=TRUE, IF(A47-2=0, "Lowest Level","Lowest Level -"&(A47-2)), "Level 2")) -> Level 2 | F42: 10000 | H42: All | J42: Label | L42: All
D45: =IF(Y1=2, "Level 3", IF(Z1=TRUE, IF(A47-3=0, "Lowest Level","Lowest Level -"&(A47-3)), "Level 3")) -> Level 3 | F45: 10000 | H45: All | J45: Label | L45: All
A47: 3
B52: Dimension Member/Property Formatting
B54: Row
E55: Data | H55: Use | I55: Header | L55: Use
D57: Custom Member Default Format | F57: 10000 | H57: All | J57: Label | L57: All
D60: Calculated Member Default Format | F60: 10000 | H60: All | J60: Label | L60: All
D63: Inputable Member Default Format | F63: 10000 | H63: All | J63: Label | L63: All
D66: Local Member Default Format | F66: 10000 | H66: All | J66: Label | L66: All
D69: Changed Member Default Format | F69: 10000 | H69: All | J69: Label | L69: All
D72: Formatting on Specific Member/Property:
B75: Column
E76: Data | H76: Use | I76: Header | L76: Use
D78: Custom Member Default Format | F78: 10000 | H78: All | J78: Label | L78: All
D81: Calculated Member Default Format | F81: 10000 | H81: All | J81: Label | L81: All
D84: Inputable Member Default Format | F84: 10000 | H84: All | J84: Label | L84: All
D87: Local Member Default Format | F87: 10000 | H87: All | J87: Label | L87: All
D90: Changed Member Default Format | F90: 10000 | H90: All | J90: Label | L90: All
D93: Formatting on Specific Member/Property:
B98: Row and Column Banding
B100: Row
E101: Data | H101: Use | I101: Header | L101: Use
D103: Odd Formatting | F103: 10000 | H103: All | J103: Label | L103: All
D106: Even Formatting | F106: 10000 | H106: All | J106: Label | L106: All
B108: Column
E109: Data | H109: Use | I109: Header | L109: Use
D111: Odd Formatting | F111: 10000 | H111: All | J111: Label | L111: All
D114: Even Formatting | F114: 10000 | H114: All | J114: Label | L114: All
B118: Page Axis Formatting
E120: Header | H120: Use
D122: Default Format | F122: Label | H122: All
D125: Formatting on Specific Dimension:

Sheet BCE Inc. IS HIST p3
L1: BCE
L2: Données opérationnelles consolidées – Tendance historique
B5: Cumul | G5: TOTAL
A6: (en millions de dollars canadiens, sauf les montants liés aux actions) (non audité) | B6: 2025 | D6: T2 25 | E6: T1 25 | G6: 2024 | I6: T4 24 | J6: T3 24 | K6: T2 24 | L6: T1 24
A7: Produits d’exploitation
A8: Tirés des services | B8: 10439 | D8: 5267 | E8: 5172 | G8: 21073 | I8: 5287 | J8: 5286 | K8: 5308 | L8: 5192
A9: Tirés des produits | B9: 1576 | D9: 818 | E9: 758 | G9: 3336 | I9: 1135 | J9: 685 | K9: 697 | L9: 819
A10: Total des produits d’exploitation | B10: 12015 | D10: 6085 | E10: 5930 | G10: 24409 | I10: 6422 | J10: 5971 | K10: 6005 | L10: 6011
A11: Coûts d’exploitation | B11: -6783 | D11: -3411 | E11: -3372 | G11: -13820 | I11: -3817 | J11: -3249 | K11: -3308 | L11: -3446
A12: BAIIA ajusté | B12: 5232 | D12: 2674 | E12: 2558 | G12: 10589 | I12: 2605 | J12: 2722 | K12: 2697 | L12: 2565
A13: Marge du BAIIA ajusté | B13: 0.4354556804 | D13: 0.439441249 | E13: 0.4313659359 | G13: 0.433815396 | I13: 0.4056368732 | J13: 0.4558700385 | K13: 0.4491257286 | L13: 0.427
A14: Coûts liés aux indemnités de départ, aux acquisitions et autres | B14: -288 | D14: -41 | E14: -247 | G14: -454 | I14: -154 | J14: -49 | K14: -22 | L14: -229
A15: Amortissement des immobilisations corporelles | B15: -1890 | D15: -949 | E15: -941 | G15: -3758 | I15: -933 | J15: -934 | K15: -945 | L15: -946
A16: Amortissement des immobilisations incorporelles | B16: -669 | D16: -338 | E16: -331 | G16: -1283 | I16: -317 | J16: -325 | K16: -325 | L16: -316
A17: Charges financières
A18: Charges d’intérêts | B18: -865 | D18: -442 | E18: -423 | G18: -1713 | I18: -431 | J18: -440 | K18: -426 | L18: -416
A19: Rendements nets au titre des régimes d’avantages postérieurs à l’emploi | B19: 51 | D19: 26 | E19: 25 | G19: 66 | I19: 17 | J19: 16 | K19: 17 | L19: 16
A20: Perte de valeur d’actifs | B20: -17 | D20: -8 | E20: -9 | G20: -2190 | I20: -4 | J20: -2113 | K20: -60 | L20: -13
A21: Autres produits (charges) | B21: 270 | D21: -38 | E21: 308 | G21: -305 | I21: -103 | J21: -63 | K21: -101 | L21: -38
A22: Impôt sur le résultat | B22: -497 | D22: -240 | E22: -257 | G22: -577 | I22: -175 | J22: -5 | K22: -231 | L22: -166
A23: Bénéfice net (perte nette) | B23: 1327 | D23: 644 | E23: 683 | G23: 375 | I23: 505 | J23: -1191 | K23: 604 | L23: 457
A25: Bénéfice net (perte nette) attribuable aux :
A26: Actionnaires ordinaires | B26: 1209 | D26: 579 | E26: 630 | G26: 163 | I26: 461 | J26: -1237 | K26: 537 | L26: 402
A27: Actionnaires privilégiés | B27: 81 | D27: 40 | E27: 41 | G27: 181 | I27: 43 | J27: 45 | K27: 46 | L27: 47
A28: Détenteurs de participations ne donnant pas le contrôle | B28: 37 | D28: 25 | E28: 12 | G28: 31 | I28: 1 | J28: 1 | K28: 21 | L28: 8
A29: Bénéfice net (perte nette) | B29: 1327 | D29: 644 | E29: 683 | G29: 375 | I29: 505 | J29: -1191 | K29: 604 | L29: 457
A31: Bénéfice net (perte nette) par action ordinaire – de base et dilué | B31: 1.306179775 | D31: 0.6319787303 | E31: 0.6845593828 | G31: 0.1786692974 | I31: 0.5053162337 | J31: -1.356646936 | K31: 0.59 | L31: 0.44
A32: Dividendes par action ordinaire | B32: 1.435 | D32: 0.4375 | E32: 0.9975 | G32: 3.99 | I32: 0.99753 | J32: 0.9975 | K32: 0.9975 | L32: 0.9975
A34: Nombre moyen pondéré d’actions ordinaires en circulation – de base (en millions) | B34: 925.6 | D34: 930.9 | E34: 920.3 | G34: 912.3 | I34: 912.3 | J34: 912.3 | K34: 912.3 | L34: 912.3
A35: Nombre moyen pondéré d’actions ordinaires en circulation – dilué (en millions) | B35: 925.6 | D35: 930.9 | E35: 920.3 | G35: 912.3 | I35: 912.3 | J35: 912.3 | K35: 912.3 | L35: 912.3
A36: Nombre d’actions ordinaires en circulation (en millions) | B36: 932.5 | D36: 932.5 | E36: 921.8 | G36: 912.3 | I36: 912.3 | J36: 912.3 | K36: 912.3 | L36: 912.3
A38: Bénéfice net ajusté et BPA ajusté
A39: Bénéfice net (perte nette) attribuable aux actionnaires ordinaires | B39: 1209 | D39: 579 | E39: 630 | G39: 163 | I39: 461 | J39: -1237 | K39: 537 | L39: 402
A40: Éléments de rapprochement :
A41: Coûts liés aux indemnités de départ, aux acquisitions et autres | B41: 288 | D41: 41 | E41: 247 | G41: 454 | I41: 154 | J41: 49 | K41: 22 | L41: 229
A42: Pertes nettes (profits nets) lié(e)s à la valeur de marché sur dérivés utilisés à titre de couverture économique des régimes de rémunération fondée sur des actions qui sont réglés en instruments de capitaux propres | B42: 42 | D42: 43 | E42: -1 | G42: 269 | I42: 198 | J42: -42 | K42: 23 | L42: 90
A43: Pertes nettes sur participations mises en équivalence dans des entreprises associées et des coentreprises | B43: 0 | D43: 0 | E43: 0 | G43: 247 | I43: 0 | J43: 154 | K43: 93 | L43: 0
A44: Pertes nettes (profits nets) sur placements | B44: 10 | D44: 8 | E44: 2 | G44: -57 | I44: 1 | J44: -66 | K44: 2 | L44: 6
A45: Profits liés au remboursement anticipé de titres d'emprunt | B45: -357 | D45: -91 | E45: -266 | G45: 0 | I45: 0 | J45: 0 | K45: 0 | L45: 0
A46: Perte de valeur d’actifs | B46: 17 | D46: 8 | E46: 9 | G46: 2190 | I46: 4 | J46: 2113 | K46: 60 | L46: 13
A47: Impôt lié aux éléments de rapprochement ci-dessus | B47: 16 | D47: 4 | E47: 12 | G47: -467 | I47: -99 | J47: -258 | K47: -25 | L47: -85
A48: Participations ne donnant pas le contrôle liées aux éléments de rapprochement ci-dessus | B48: 0 | D48: 0 | E48: 0 | G48: -26 | I48: 0 | J48: -25 | K48: 0 | L48: -1
A49: Bénéfice net ajusté | B49: 1225 | D49: 592 | E49: 633 | G49: 2773 | I49: 719 | J49: 688 | K49: 712 | L49: 654
A50: BPA ajusté | B50: 1.32346586 | D50: 0.6256466706 | E50: 0.6878191894 | G50: 3.039570317 | I50: 0.7881179437 | J50: 0.7541378932 | K50: 0.7773144799 | L50: 0.72

Sheet BCE Inc Seg Info Summary p4
L1: BCE
L2: Informations sectorielles
B4: T2 | C4: T2 | E4: Variation | F4: % de | H4: Cumul | I4: Cumul | K4: Variation | L4: % de
A5: (en millions de dollars canadiens, sauf indication contraire) (non audité) | B5: 2025 | C5: 2024 | E5: ($) | F5: variation | H5: 2025 | I5: 2024 | K5: ($) | L5: variation
A7: Produits d’exploitation
A8: Bell Services de communications et de technologies (Bell SCT) | B8: 5334 | C8: 5283 | E8: 51 | F8: 0.009653605906 | H8: 10580 | I8: 10658 | K8: -78 | L8: -0.007318446238
A9: Bell Média | B9: 843 | C9: 812 | E9: 31 | F9: 0.0381773399 | H9: 1618 | I9: 1537 | K9: 81 | L9: 0.05270006506
A10: Éliminations intersectorielles | B10: -92 | C10: -90 | E10: -2 | F10: -0.02222222222 | H10: -183 | I10: -179 | K10: -4 | L10: -0.02234636872
A11: Au total | B11: 6085 | C11: 6005 | E11: 80 | F11: 0.01332223147 | H11: 12015 | I11: 12016 | K11: -1 | L11: 0
A13: Coûts d’exploitation
A14: Bell SCT | B14: -2895 | C14: -2804 | E14: -91 | F14: -0.03245363766 | H14: -5742 | I14: -5731 | K14: -11 | L14: -0.001919385797
A15: Bell Média | B15: -608 | C15: -594 | E15: -14 | F15: -0.02356902357 | H15: -1224 | I15: -1202 | K15: -22 | L15: -0.01830282862
A16: Éliminations intersectorielles | B16: 92 | C16: 90 | E16: 2 | F16: 0.02222222222 | H16: 183 | I16: 179 | K16: 4 | L16: 0.02234636872
A17: Au total | B17: -3411 | C17: -3308 | E17: -103 | F17: -0.03113663845 | H17: -6783 | I17: -6754 | K17: -29 | L17: -0.004293751851
A19: BAIIA ajusté
A20: Bell SCT | B20: 2439 | C20: 2479 | E20: -40 | F20: -0.01613553852 | H20: 4838 | I20: 4927 | K20: -89 | L20: -0.01806373046
A21: Marge | B21: 45,7 % | C21: 0.469 | F21: -1.2 | H21: 45,7 % | I21: 0.462 | L21: -0.5
A22: Bell Média | B22: 235 | C22: 218 | E22: 17 | F22: 0.07798165138 | H22: 394 | I22: 335 | K22: 59 | L22: 0.176119403
A23: Marge | B23: 27,9 % | C23: 0.268 | F23: 1.1 | H23: 24,4 % | I23: 0.218 | L23: 2.6
A24: Au total | B24: 2674 | C24: 2697 | E24: -23 | F24: -0.008527994067 | H24: 5232 | I24: 5262 | K24: -30 | L24: -0.005701254276
A25: Marge | B25: 43,9 % | C25: 0.449 | F25: -1 | H25: 43,5 % | I25: 0.438 | L25: -0.3
A27: Dépenses d’investissement
A28: Bell SCT | B28: 727 | C28: 945 | E28: 218 | F28: 0.2306878307 | H28: 1431 | I28: 1920 | K28: 489 | L28: 0.2546875
A29: Intensité du capital (A)(3) | B29: 13,6 % | C29: 0.1788756388 | F29: 4.3 | H29: 13,5 % | I29: 0.18 | L29: 4.5
A30: Bell Média | B30: 36 | C30: 33 | E30: -3 | F30: -0.09090909091 | H30: 61 | I30: 60 | K30: -1 | L30: -0.01666666667
A31: Intensité du capital | B31: 4,3 % | C31: 0.04064039409 | F31: -0.2 | H31: 3,8 % | I31: 0.039 | L31: 0.1
A32: Au total | B32: 763 | C32: 978 | E32: 215 | F32: 0.2198364008 | H32: 1492 | I32: 1980 | K32: 488 | L32: 0.2464646465
A33: Intensité du capital | B33: 12,5 % | C33: 0.1628642798 | F33: 3.8 | H33: 12,4 % | I33: 0.165 | L33: 4.1
A35: (A) L’intensité du capital correspond aux dépenses d’investissement divisées par les produits d’exploitation.

Sheet BCE Inc. Seg Info HIS p5
L1: BCE
L2: Informations sectorielles – Tendance historique
B4: Cumul | G4: TOTAL
A5: (en millions de dollars canadiens, sauf indication contraire) (non audité) | B5: 2025 | D5: T2 25 | E5: T1 25 | G5: 2024 | I5: T4 24 | J5: T3 24 | K5: T2 24 | L5: T1 24
A7: Produits d’exploitation
A8: Bell SCT | B8: 10580 | D8: 5334 | E8: 5246 | G8: 21619 | I8: 5681 | J8: 5280 | K8: 5283 | L8: 5375
A9: Bell Média | B9: 1618 | D9: 843 | E9: 775 | G9: 3151 | I9: 832 | J9: 782 | K9: 812 | L9: 725
A10: Éliminations intersectorielles | B10: -183 | D10: -92 | E10: -91 | G10: -361 | I10: -91 | J10: -91 | K10: -90 | L10: -89
A11: Au total | B11: 12015 | D11: 6085 | E11: 5930 | G11: 24409 | I11: 6422 | J11: 5971 | K11: 6005 | L11: 6011
A13: Coûts d’exploitation
A14: Bell SCT | B14: -5742 | D14: -2895 | E14: -2847 | G14: -11788 | I14: -3245 | J14: -2812 | K14: -2804 | L14: -2927
A15: Bell Média | B15: -1224 | D15: -608 | E15: -616 | G15: -2393 | I15: -663 | J15: -528 | K15: -594 | L15: -608
A16: Éliminations intersectorielles | B16: 183 | D16: 92 | E16: 91 | G16: 361 | I16: 91 | J16: 91 | K16: 90 | L16: 89
A17: Au total | B17: -6783 | D17: -3411 | E17: -3372 | G17: -13820 | I17: -3817 | J17: -3249 | K17: -3308 | L17: -3446
A19: BAIIA ajusté
A20: Bell SCT | B20: 4838 | D20: 2439 | E20: 2399 | G20: 9831 | I20: 2436 | J20: 2468 | K20: 2479 | L20: 2448
A21: Marge | B21: 0.457 | D21: 0.457 | E21: 0.457 | G21: 0.455 | I21: 0.429 | J21: 0.467 | K21: 0.469 | L21: 0.455
A22: Bell Média | B22: 394 | D22: 235 | E22: 159 | G22: 758 | I22: 169 | J22: 254 | K22: 218 | L22: 117
A23: Marge | B23: 0.244 | D23: 0.279 | E23: 0.205 | G23: 0.241 | I23: 0.203 | J23: 0.325 | K23: 0.268 | L23: 0.161
A24: Au total | B24: 5232 | D24: 2674 | E24: 2558 | G24: 10589 | I24: 2605 | J24: 2722 | K24: 2697 | L24: 2565
A25: Marge | B25: 0.435 | D25: 0.439 | E25: 0.431 | G25: 0.434 | I25: 0.406 | J25: 0.456 | K25: 0.449 | L25: 0.427
A27: Dépenses d’investissement
A28: Bell SCT | B28: 1431 | D28: 727 | E28: 704 | G28: 3746 | I28: 907 | J28: 919 | K28: 945 | L28: 975
A29: Intensité du capital | B29: 0.1352551985 | D29: 0.1362954631 | E29: 0.134 | G29: 0.1732735094 | I29: 0.1596549903 | J29: 0.1740530303 | K29: 0.1788756388 | L29: 0.181
A30: Bell Média | B30: 61 | D30: 36 | E30: 25 | G30: 151 | I30: 56 | J30: 35 | K30: 33 | L30: 27
A31: Intensité du capital | B31: 0.03770086527 | D31: 0.04270462633 | E31: 0.032 | G31: 0.04792129483 | I31: 0.06730769231 | J31: 0.04475703325 | K31: 0.04064039409 | L31: 0.037
A32: Au total | B32: 1492 | D32: 763 | E32: 729 | G32: 3897 | I32: 963 | J32: 954 | K32: 978 | L32: 1002
A33: Intensité du capital | B33: 0.1241781107 | D33: 0.125390304 | E33: 0.123 | G33: 0.1596542259 | I33: 0.1499532856 | J33: 0.1597722325 | K33: 0.1628642798 | L33: 0.167

Sheet BCE Inc. Seg Info HIST p5 (hidden)
A1: CORPORATE | B1: CONSOL
A2: ACTUAL | B2: ACTUAL
A3: ALL_DS | B3: ALL_DS | C3: All Data Sources
A4: All Posting Levels | B4: BCE_CONS - BCE
A5: Canadian Dollar | B5: F_CLO - Closing Balance
A6: All Trading Partners | B6: BCE - BCE Consolidated.
A7: Year To Date | B7: ALL_POSTING - All posting levels (C)
A8: Quarter to date | B8: CAD - Canadian Dollar
B9: All Trading Partners
B10: YTD - Year To Date
E15: 2022.Q4 - 2022.Q4 | G15: 2021.Q4 - 2021.Q4
C16: Revenues
Q17: BCE (2)
Q18: Segmented Data - Historical Trend
D20: (In millions of Canadian dollars, except where otherwise indicated) (unaudited) | E20: TOTAL 2022 | G20: Q4 22 | H20: Q3 22 | I20: Q2 22 | J20: Q1 22 | L20: TOTAL 2021 | N20: Q4 21 | O20: Q3 21 | P20: Q2 21 | Q20: Q1 21 | S20: CY Check | T20: PY Check
D22: Operating revenues
B23: T401000 - Total Revenue | C23: WRLESS | D23: Bell Wireless | E23: =ROUND(_xll.EPMRetrieveData($A$1,$B$23,$A$2,$A$3,$A$4,$A$5,E15,$A$6,$A$7,$C$23)/1000000,0) ->  | G23: =E23-H23-I23-J23 ->  | H23: 2466 | I23: 2246 | J23: 2210 | L23: 8999 | N23: 2475 | O23: 2296 | P23: 2128 | Q23: 2100 | S23: =SUM(G23:J23)=E23 ->  | T23: =SUM(N23:Q23)=L23 -> TRUE
C24: WRLINE | D24: Bell Wireline | E24: =(ROUND(_xll.EPMRetrieveData($A$1,$B$23,$A$2,$C$24,$A$3,$A$4,$A$5,E15,$A$6,$A$7)/1000000,0))-1 ->  | G24: =E24-H24-I24-J24 ->  | H24: 3046 | I24: 2995 | J24: 3013 | L24: 12178 | N24: 3079 | O24: 3015 | P24: 3003 | Q24: 3081 | S24: =SUM(G24:J24)=E24 ->  | T24: =SUM(N24:Q24)=L24 -> TRUE
C25: Bell_Media | D25: Bell Media | E25: =ROUND(_xll.EPMRetrieveData($A$1,$B$23,$A$2,$C$25,$A$3,$A$4,$A$5,E15,$A$6,$A$7)/1000000,0) ->  | G25: =E25-H25-I25-J25 ->  | H25: 719 | I25: 821 | J25: 825 | L25: 3036 | N25: 849 | O25: 719 | P25: 755 | Q25: 713 | T25: TRUE
D26: Inter-segment eliminations | E26: =E27-E23-E24-E25 ->  | G26: =E26-H26-I26-J26 ->  | H26: -207 | I26: -201 | J26: -198 | L26: -764 | N26: -194 | O26: -194 | P26: -188 | Q26: -188 | T26: TRUE
C27: BELL | D27: Total | E27: =ROUND(_xll.EPMRetrieveData($A$1,$B$23,$A$2,$C$27,$A$3,$A$4,$A$5,E15,$A$6,$A$7)/1000000,0) ->  | G27: =E27-H27-I27-J27 ->  | H27: 6024 | I27: 5861 | J27: 5850 | L27: 23449 | N27: 6209 | O27: 5836 | P27: 5698 | Q27: 5706 | T27: TRUE
D29: Operating costs
D30: Bell Wireless | E30: =(E37-E23) ->  | G30: =E30-H30-I30-J30 ->  | H30: -1377 | I30: -1197 | J30: -1201 | L30: -5146 | N30: -1524 | O30: -1286 | P30: -1159 | Q30: -1177 | T30: TRUE
D31: Bell Wireline | E31: =E39-E24 ->  | G31: =E31-H31-I31-J31 ->  | H31: -1729 | I31: -1680 | J31: -1646 | L31: -6863 | N31: -1753 | O31: -1682 | P31: -1710 | Q31: -1718 | T31: TRUE
D32: Bell Media | E32: =E41-E25 ->  | G32: =E32-H32-I32-J32 ->  | H32: -537 | I32: -595 | J32: -617 | L32: -2311 | N32: -696 | O32: -504 | P32: -541 | Q32: -570 | T32: TRUE
D33: Inter-segment eliminations | E33: =-E26 ->  | G33: =E33-H33-I33-J33 ->  | H33: 207 | I33: 201 | J33: 198 | L33: 764 | N33: 194 | O33: 194 | P33: 188 | Q33: 188 | T33: TRUE
D34: Total | E34: =E43-E27 ->  | G34: =E34-H34-I34-J34 ->  | H34: -3436 | I34: -3271 | J34: -3266 | L34: -13556 | N34: -3779 | O34: -3278 | P34: -3222 | Q34: -3277 | T34: TRUE
D36: Adjusted EBITDA
B37: T6CCCCA - EBITDA | D37: Bell Wireless | E37: =ROUND(_xll.EPMRetrieveData($A$1,$B$37,$A$2,$C$23,$A$3,$A$4,$A$5,E15,$A$6,$A$7)/1000000,0) ->  | G37: =E37-H37-I37-J37 ->  | H37: 1089 | I37: 1049 | J37: 1009 | L37: 3853 | N37: 951 | O37: 1010 | P37: 969 | Q37: 923 | S37: =SUM(G37:J37)=E37 ->  | T37: =SUM(N37:Q37)=L37 -> TRUE
D38: Margin | E38: =ROUND(E37/E23,3) ->  | G38: =ROUND(G37/G23,3) ->  | H38: 0.442 | I38: 0.467 | J38: 0.457 | L38: 0.428 | N38: 0.384 | O38: 0.4398954704 | P38: 0.455 | Q38: 0.44
D39: Bell Wireline | E39: =ROUND(_xll.EPMRetrieveData($A$1,$B$37,$A$2,$C$24,$A$3,$A$4,$A$5,E15,$A$6,$A$7)/1000000,0) ->  | G39: =E39-H39-I39-J39 ->  | H39: 1317 | I39: 1315 | J39: 1367 | L39: 5315 | N39: 1326 | O39: 1333 | P39: 1293 | Q39: 1363 | S39: =SUM(G39:J39)=E39 ->  | T39: TRUE
D40: Margin | E40: =ROUND(E39/E24,3) ->  | G40: =ROUND(G39/G24,3) ->  | H40: 0.432 | I40: 0.439 | J40: 0.454 | L40: 0.436 | N40: 0.431 | O40: 0.4421227197 | P40: 0.431 | Q40: 0.442
D41: Bell Media | E41: =ROUND(_xll.EPMRetrieveData($A$1,$B$37,$A$2,$C$25,$A$3,$A$4,$A$5,E15,$A$6,$A$7)/1000000,0) ->  | G41: =E41-H41-I41-J41 ->  | H41: 182 | I41: 226 | J41: 208 | L41: 725 | N41: 153 | O41: 215 | P41: 214 | Q41: 143 | T41: TRUE
D42: Margin | E42: =ROUND(E41/E25,3) ->  | G42: =ROUND(G41/G25,3) ->  | H42: 0.253 | I42: 0.275 | J42: 0.252 | L42: 0.239 | N42: 0.18 | O42: 0.2990264256 | P42: 0.283 | Q42: 0.201
D43: Total | E43: =ROUND(_xll.EPMRetrieveData($A$1,$B$37,$A$2,$C$27,$A$3,$A$4,$A$5,E15,$A$6,$A$7)/1000000,0) ->  | G43: =E43-H43-I43-J43 ->  | H43: 2588 | I43: 2590 | J43: 2584 | L43: 9893 | N43: 2430 | O43: 2558 | P43: 2476 | Q43: 2429 | T43: TRUE
D44: Margin | E44: =ROUND(E43/E27,3) ->  | G44: =ROUND(G43/G27,3) ->  | H44: 0.43 | I44: 0.442 | J44: 0.442 | L44: 0.422 | N44: 0.391 | O44: 0.4383139136 | P44: 0.435 | Q44: 0.426
D46: Capital expenditures
B47: TCFCapEx | D47: Bell Wireless | E47: 1084 | G47: =E47-H47-I47-J47 -> 308 | H47: 248 | I47: 280 | J47: 248 | L47: =SUM(N47:Q47) -> 1120 | N47: 273 | O47: 255 | P47: 306 | Q47: 286 | S47: =SUM(G47:J47)=E47 -> TRUE | T47: TRUE
D48: Capital intensity | E48: =E47/E23 ->  | G48: =G47/G23 ->  | H48: 0.100567721 | I48: 0.124666073 | J48: =J47/J23 -> 0.1122171946 | L48: 0.1244582731 | N48: 0.1103030303 | O48: 0.1110627178 | P48: 0.1437969925 | Q48: =Q47/Q23 -> 0.1361904762
D49: Bell Wireline | E49: 3887 | G49: =E49-H49-I49-J49 -> 1251 | H49: 1038 | I49: 910 | J49: 688 | L49: =SUM(N49:Q49) -> 3612 | N49: 1141 | O49: 884 | P49: 880 | Q49: 707 | S49: TRUE | T49: TRUE
D50: Capital intensity | E50: =E49/E24 ->  | G50: =G49/G24 ->  | H50: 0.3407747866 | I50: 0.3038397329 | J50: =J49/J24 -> 0.2283438433 | L50: =L49/L24 -> 0.296600427 | N50: 0.370574862 | O50: 0.2932006633 | P50: =P49/P24 -> 0.293040293 | Q50: 0.229470951
C51: SAPCO_2300_CONS - Bell Media | D51: Bell Media | E51: 162 | G51: =E51-H51-I51-J51 -> 79 | H51: 31 | I51: 29 | J51: 23 | L51: 120 | N51: 52 | O51: 25 | P51: 24 | Q51: 19 | S51: TRUE | T51: TRUE
D52: Capital intensity | E52: =E51/E25 ->  | G52: =G51/G25 ->  | H52: 0.04311543811 | I52: 0.0353227771 | J52: =J51/J25 -> 0.02787878788 | L52: 0.0395256917 | N52: 0.06124852768 | O52: 0.0347705146 | P52: =P51/P25 -> 0.03178807947 | Q52: 0.02664796634
C53: BCE_CONS - BCE | D53: Total | E53: =-ROUND(_xll.EPMRetrieveData($B$1,$B$47,$B$2,$C$53,$B$3,$B$4,$B$5,E15,$B$7,$B$8,$B$9,$B$10)/1000000,0) ->  | G53: =E53-H53-I53-J53 ->  | H53: 1317 | I53: 1219 | J53: =J47+J49+J51 -> 959 | K53: =K47+K49+K51 -> 0 | L53: 4852 | M53: 0 | N53: 1466 | O53: 1164 | P53: 1210 | Q53: =Q47+Q49+Q51 -> 1012 | T53: TRUE
D54: Capital intensity | E54: =E53/E27 ->  | G54: =G53/G27 ->  | H54: 0.218625498 | I54: 0.2079849855 | J54: =J53/J27 -> 0.1639316239 | L54: =L53/L27 -> 0.2069171393 | N54: 0.2361088742 | O54: =O53/O27 -> 0.1994516792 | P54: =P53/P27 -> 0.2123552124 | Q54: =Q53/Q27 -> 0.1773571679
E60: =E47+E49+E51=E53 ->  | F60: TRUE | H60: TRUE | I60: TRUE | J60: TRUE | K60: TRUE | L60: TRUE | M60: TRUE | N60: TRUE | O60: TRUE | P60: TRUE | Q60: =Q47+Q49+Q51=Q53 -> TRUE
E61: =E37+E39+E41=E43 ->  | F61: =F37+F39+F41=F43 -> TRUE | H61: TRUE | I61: TRUE | J61: TRUE | K61: TRUE | L61: TRUE | M61: TRUE | N61: TRUE | O61: TRUE | P61: TRUE | Q61: TRUE
E62: =E30+E31+E32+E33=E34 ->  | F62: =F30+F31+F32+F33=F34 -> TRUE | H62: TRUE | I62: TRUE | J62: TRUE | K62: TRUE | L62: TRUE | M62: TRUE | N62: =N30+N31+N32+N33=N34 -> TRUE | O62: TRUE | P62: TRUE | Q62: TRUE
E63: =E23+E24+E25+E26=E27 ->  | F63: =F23+F24+F25+F26=F27 -> TRUE | H63: TRUE | I63: TRUE | J63: TRUE | K63: TRUE | L63: TRUE | M63: TRUE | N63: TRUE | O63: TRUE | P63: TRUE | Q63: TRUE

Sheet CTS HIST p6FMO-delete (hidden)
M2: Bell Wireline (1) (2)
C5: Q4 | E5: Q4 | I5: TOTAL | K5: TOTAL
A6: (In millions of Canadian dollars, except where otherwise indicated) (unaudited) | C6: 2022 | E6: 2021 | G6: % change | I6: 2022 | K6: 2021 | M6: % change
A7: Bell Wireline
A8: Operating revenues
A9: Data | C9: ='Bell Wireline HIST p9'!G24 ->  | E9: ='Bell Wireline HIST p9'!N24 -> 1986 | G9: =IF(OR(((ABS(C9-E9)/E9))>100%,((ABS(C9-E9)/E9))<-100%),"n.m.",((C9-E9)/ABS(E9))) ->  | H9: =(C9-F9)/F9 ->  | I9: ='Bell Wireline HIST p9'!E24 ->  | K9: ='Bell Wireline HIST p9'!O24+'Bell Wireline HIST p9'!P24+'Bell Wireline HIST p9'!Q24+'Bell Wireline HIST p9'!N24 -> 7871 | M9: =IF(OR(((ABS(I9-K9)/K9))>100%,((ABS(I9-K9)/K9))<-100%),"n.m.",((I9-K9)/ABS(K9))) -> 
A10: Voice | C10: ='Bell Wireline HIST p9'!G25 ->  | E10: ='Bell Wireline HIST p9'!N25 -> 779 | G10: =IF(OR(((ABS(C10-E10)/E10))>100%,((ABS(C10-E10)/E10))<-100%),"n.m.",((C10-E10)/ABS(E10))) ->  | I10: ='Bell Wireline HIST p9'!E25 ->  | K10: ='Bell Wireline HIST p9'!O25+'Bell Wireline HIST p9'!P25+'Bell Wireline HIST p9'!Q25+'Bell Wireline HIST p9'!N25 -> 3154 | M10: =IF(OR(((ABS(I10-K10)/K10))>100%,((ABS(I10-K10)/K10))<-100%),"n.m.",((I10-K10)/ABS(K10))) -> 
A11: Other services | C11: ='Bell Wireline HIST p9'!G26 ->  | E11: ='Bell Wireline HIST p9'!N26 -> 75 | G11: =IF(OR(((ABS(C11-E11)/E11))>100%,((ABS(C11-E11)/E11))<-100%),"n.m.",((C11-E11)/ABS(E11))) ->  | I11: ='Bell Wireline HIST p9'!E26 ->  | K11: ='Bell Wireline HIST p9'!O26+'Bell Wireline HIST p9'!P26+'Bell Wireline HIST p9'!Q26+'Bell Wireline HIST p9'!N26 -> 289 | M11: =IF(OR(((ABS(I11-K11)/K11))>100%,((ABS(I11-K11)/K11))<-100%),"n.m.",((I11-K11)/ABS(K11))) -> 
A12: External service revenues | C12: ='Bell Wireline HIST p9'!G27 ->  | E12: ='Bell Wireline HIST p9'!N27 -> 2840 | G12: =IF(OR(((ABS(C12-E12)/E12))>100%,((ABS(C12-E12)/E12))<-100%),"n.m.",((C12-E12)/ABS(E12))) ->  | I12: ='Bell Wireline HIST p9'!E27 ->  | K12: ='Bell Wireline HIST p9'!O27+'Bell Wireline HIST p9'!P27+'Bell Wireline HIST p9'!Q27+'Bell Wireline HIST p9'!N27 -> 11314 | M12: =IF(OR(((ABS(I12-K12)/K12))>100%,((ABS(I12-K12)/K12))<-100%),"n.m.",((I12-K12)/ABS(K12))) -> 
A13: Inter-segment service revenues | C13: ='Bell Wireline HIST p9'!G28 ->  | E13: ='Bell Wireline HIST p9'!N28 -> 94 | G13: =IF(OR(((ABS(C13-E13)/E13))>=100%,((ABS(C13-E13)/E13))<=-100%),"n.m.",((C13-E13)/ABS(E13))) ->  | I13: ='Bell Wireline HIST p9'!E28 ->  | K13: ='Bell Wireline HIST p9'!O28+'Bell Wireline HIST p9'!P28+'Bell Wireline HIST p9'!Q28+'Bell Wireline HIST p9'!N28 -> 358 | M13: =IF(OR(((ABS(I13-K13)/K13))>=100%,((ABS(I13-K13)/K13))<=-100%),"n.m.",((I13-K13)/ABS(K13))) -> 
A14: Operating service revenues | C14: ='Bell Wireline HIST p9'!G29 ->  | E14: ='Bell Wireline HIST p9'!N29 -> 2934 | G14: =IF(OR(((ABS(C14-E14)/E14))>100%,((ABS(C14-E14)/E14))<-100%),"n.m.",((C14-E14)/ABS(E14))) ->  | I14: ='Bell Wireline HIST p9'!E29 ->  | K14: ='Bell Wireline HIST p9'!O29+'Bell Wireline HIST p9'!P29+'Bell Wireline HIST p9'!Q29+'Bell Wireline HIST p9'!N29 -> 11672 | M14: =IF(OR(((ABS(I14-K14)/K14))>100%,((ABS(I14-K14)/K14))<-100%),"n.m.",((I14-K14)/ABS(K14))) -> 
A15: Data | C15: ='Bell Wireline HIST p9'!G30 ->  | E15: ='Bell Wireline HIST p9'!N30 -> 132 | G15: =IF(OR(((ABS(C15-E15)/E15))>100%,((ABS(C15-E15)/E15))<-100%),"n.m.",((C15-E15)/ABS(E15))) ->  | I15: ='Bell Wireline HIST p9'!E30 ->  | K15: ='Bell Wireline HIST p9'!O30+'Bell Wireline HIST p9'!P30+'Bell Wireline HIST p9'!Q30+'Bell Wireline HIST p9'!N30 -> 463
A16: Equipment and other | C16: ='Bell Wireline HIST p9'!G31 ->  | E16: ='Bell Wireline HIST p9'!N31 -> 13 | I16: ='Bell Wireline HIST p9'!E31 ->  | K16: ='Bell Wireline HIST p9'!O31+'Bell Wireline HIST p9'!P31+'Bell Wireline HIST p9'!Q31+'Bell Wireline HIST p9'!N31 -> 43
A17: External product revenues | C17: ='Bell Wireline HIST p9'!G32 ->  | E17: ='Bell Wireline HIST p9'!N32 -> 145 | I17: ='Bell Wireline HIST p9'!E32 ->  | K17: ='Bell Wireline HIST p9'!O32+'Bell Wireline HIST p9'!P32+'Bell Wireline HIST p9'!Q32+'Bell Wireline HIST p9'!N32 -> 506
A18: Inter-segment product revenues | C18: ='Bell Wireline HIST p9'!G33 ->  | E18: ='Bell Wireline HIST p9'!N33 -> 0 | G18: n.m | H18: 0 | I18: ='Bell Wireline HIST p9'!E33 ->  | K18: ='Bell Wireline HIST p9'!O33+'Bell Wireline HIST p9'!P33+'Bell Wireline HIST p9'!Q33+'Bell Wireline HIST p9'!N33 -> 0 | M18: n.m
A19: Operating product revenues | C19: ='Bell Wireline HIST p9'!G34 ->  | E19: ='Bell Wireline HIST p9'!N34 -> 145 | H19: =(C19-F19)/F19 ->  | I19: ='Bell Wireline HIST p9'!E34 ->  | K19: ='Bell Wireline HIST p9'!O34+'Bell Wireline HIST p9'!P34+'Bell Wireline HIST p9'!Q34+'Bell Wireline HIST p9'!N34 -> 506
A20: Total external revenues | C20: ='Bell Wireline HIST p9'!G35 ->  | E20: ='Bell Wireline HIST p9'!N35 -> 2985 | H20: =(C20-F20)/F20 ->  | I20: ='Bell Wireline HIST p9'!E35 ->  | K20: ='Bell Wireline HIST p9'!O35+'Bell Wireline HIST p9'!P35+'Bell Wireline HIST p9'!Q35+'Bell Wireline HIST p9'!N35 -> 11820
A21: Total operating revenues | C21: ='Bell Wireline HIST p9'!G36 ->  | E21: ='Bell Wireline HIST p9'!N36 -> 3079 | H21: =(C21-F21)/F21 ->  | I21: ='Bell Wireline HIST p9'!E36 ->  | K21: ='Bell Wireline HIST p9'!O36+'Bell Wireline HIST p9'!P36+'Bell Wireline HIST p9'!Q36+'Bell Wireline HIST p9'!N36 -> 12178
A22: Operating costs | C22: ='Bell Wireline HIST p9'!G37 ->  | E22: ='Bell Wireline HIST p9'!N37 -> -1753 | H22: =(-C22+F22)/F22 ->  | I22: ='Bell Wireline HIST p9'!E37 ->  | K22: ='Bell Wireline HIST p9'!O37+'Bell Wireline HIST p9'!P37+'Bell Wireline HIST p9'!Q37+'Bell Wireline HIST p9'!N37 -> -6863
A23: Adjusted EBITDA | C23: ='Bell Wireline HIST p9'!G38 ->  | E23: ='Bell Wireline HIST p9'!N38 -> 1326 | H23: =(C23-F23)/F23 ->  | I23: ='Bell Wireline HIST p9'!E38 ->  | K23: ='Bell Wireline HIST p9'!O38+'Bell Wireline HIST p9'!P38+'Bell Wireline HIST p9'!Q38+'Bell Wireline HIST p9'!N38 -> 5315 | M23: 0
A24: Adjusted EBITDA margin | C24: ='Bell Wireline HIST p9'!G39 ->  | E24: ='Bell Wireline HIST p9'!N39 -> 0.431 | G24: =((ROUND(C24,3)-ROUND(E24,3))*100) ->  | H24: =(C24-F24)*100 ->  | I24: ='Bell Wireline HIST p9'!E39 ->  | K24: =K23/K21 -> 0.4364427656 | M24: =((ROUND(I24,3)-ROUND(K24,3))*100) -> 
A26: Capital expenditures | C26: ='Bell Wireline HIST p9'!G41 -> 1251 | E26: ='Bell Wireline HIST p9'!N41 -> 1141 | G26: =IF(OR(((ABS(E26-C26)/E26))>100%,((ABS(E26-C26)/E26))<-100%),"n.m.",((E26-C26)/ABS(E26))) -> -0.09640666082 | H26: =(-C26+F26)/F26 ->  | I26: ='Bell Wireline HIST p9'!E41 -> 3887 | K26: ='Bell Wireline HIST p9'!O41+'Bell Wireline HIST p9'!P41+'Bell Wireline HIST p9'!Q41+'Bell Wireline HIST p9'!N41 -> 3612 | M26: =IF(OR(((ABS(K26-I26)/K26))>100%,((ABS(K26-I26)/K26))<-100%),"n.m.",((K26-I26)/ABS(K26))) -> -0.0761351052
A27: Capital intensity | C27: ='Bell Wireline HIST p9'!G42 ->  | E27: ='Bell Wireline HIST p9'!N42 -> 0.370574862 | G27: =((ROUND(E27,3)-ROUND(C27,3))*100) ->  | H27: =(-(C27-F27)*100) ->  | I27: ='Bell Wireline HIST p9'!E42 ->  | K27: =K26/K21 -> 0.296600427 | M27: =((ROUND(K27,3)-ROUND(I27,3))*100) -> 
A28: Retail high-speed Internet subscribers(4)
A29: Retail net subscriber activations | C29: ='Bell Wireline HIST p9'!G44 -> 63465.86585 | E29: ='Bell Wireline HIST p9'!N44 -> 47618 | G29: =IF(OR(((ABS(C29-E29)/E29))>100%,((ABS(C29-E29)/E29))<-100%),"n.m.",((C29-E29)/ABS(E29))) -> 0.3328125047 | H29: =(C29-F29)/F29 ->  | I29: ='Bell Wireline HIST p9'!E44 -> 201762 | K29: ='Bell Wireline HIST p9'!O44+'Bell Wireline HIST p9'!P44+'Bell Wireline HIST p9'!Q44+'Bell Wireline HIST p9'!N44 -> 152285 | M29: =IF(OR(((ABS(I29-K29)/K29))>100%,((ABS(I29-K29)/K29))<-100%),"n.m.",((I29-K29)/ABS(K29))) -> 0.3248973963
A30: Retail subscribers EOP(A) (B) | C30: ='Bell Wireline HIST p9'!G45 -> 4258570 | E30: ='Bell Wireline HIST p9'!N45 -> 3861652.723 | G30: 0.1027843012 | H30: =(C30-F30)/F30 ->  | I30: ='Bell Wireline HIST p9'!E45 -> 4258570 | K30: ='Bell Wireline HIST p9'!L45 -> 3861652.723 | M30: 0.1027843012
A31: Retail TV subscribers(4)
A32: Retail net subscriber activations (losses) | C32: ='Bell Wireline HIST p9'!G47 -> 14183 | E32: ='Bell Wireline HIST p9'!N47 -> 6049 | G32: n.m. | H32: =-(C32-F32)/F32 ->  | I32: ='Bell Wireline HIST p9'!E47 -> 5148 | K32: ='Bell Wireline HIST p9'!O47+'Bell Wireline HIST p9'!P47+'Bell Wireline HIST p9'!Q47+'Bell Wireline HIST p9'!N47 -> 2530 | M32: n.m.
A33: Internet protocol television (IPTV) | C33: ='Bell Wireline HIST p9'!G48 -> 40209 | E33: ='Bell Wireline HIST p9'!N48 -> 29191 | G33: 0.3774451029 | H33: =(C33-F33)/F33 ->  | I33: ='Bell Wireline HIST p9'!E48 -> 94400 | K33: ='Bell Wireline HIST p9'!O48+'Bell Wireline HIST p9'!P48+'Bell Wireline HIST p9'!Q48+'Bell Wireline HIST p9'!N48 -> 76068 | M33: 0.2409948993
A34: Satellite | C34: =+'Bell Wireline HIST p9'!G49 -> -26026 | E34: =+'Bell Wireline HIST p9'!N49 -> -23142 | G34: -0.1246218996 | I34: ='Bell Wireline HIST p9'!E49 -> -89252 | K34: ='Bell Wireline HIST p9'!O49+'Bell Wireline HIST p9'!P49+'Bell Wireline HIST p9'!Q49+'Bell Wireline HIST p9'!N49 -> -73538 | M34: -0.2136854415
A35: Total retail subscribers EOP(A) (B) | C35: ='Bell Wireline HIST p9'!G50 -> 2751498 | E35: ='Bell Wireline HIST p9'!N50 -> 2735010.138 | G35: 0.006028446388 | H35: =(C35-F35)/F35 ->  | I35: ='Bell Wireline HIST p9'!E50 -> 2751498 | K35: ='Bell Wireline HIST p9'!L50 -> 2735010.138 | M35: 0.006028446388
A36: IPTV(A) (B) | C36: ='Bell Wireline HIST p9'!G51 -> 1988181 | E36: ='Bell Wireline HIST p9'!N51 -> 1882441.138 | G36: 0.05617166978 | H36: =(C36-F36)/F36 ->  | I36: ='Bell Wireline HIST p9'!E51 -> 1988181 | K36: ='Bell Wireline HIST p9'!L51 -> 1882441.138 | M36: 0.05617166978
A37: Satellite | C37: ='Bell Wireline HIST p9'!G52 -> 763317 | E37: ='Bell Wireline HIST p9'!N52 -> 852569 | G37: -0.104685955 | I37: ='Bell Wireline HIST p9'!E52 -> 763317 | K37: ='Bell Wireline HIST p9'!N52 -> 852569 | M37: -0.104685955
A38: Retail residential network access services (NAS)(4)
A39: Retail residential NAS lines net losses | C39: ='Bell Wireline HIST p9'!G54 -> -37878 | E39: ='Bell Wireline HIST p9'!N54 -> -40211 | G39: 0.05801895004 | H39: =-(C39-F39)/F39 ->  | I39: ='Bell Wireline HIST p9'!E54 -> -175788 | K39: ='Bell Wireline HIST p9'!O54+'Bell Wireline HIST p9'!P54+'Bell Wireline HIST p9'!Q54+'Bell Wireline HIST p9'!N54 -> -185327 | M39: 0.05147118337
A40: Retail residential NAS lines(A) (B) | C40: ='Bell Wireline HIST p9'!G55 -> 2190771 | E40: ='Bell Wireline HIST p9'!N55 -> 2298605 | G40: -0.04691280146 | H40: =(C40-F40)/F40 ->  | I40: ='Bell Wireline HIST p9'!E55 -> 2190771 | K40: ='Bell Wireline HIST p9'!N55 -> 2298605 | M40: -0.04691280146
A42: n.m. : not meaningful
A43: (A) | B43: In Q1 2022, as a result of the acquisition of EBOX and other related companies, our retail high-speed Internet, retail IPTV and retail residential NAS lines subscriber bases increased by 67,090, 9,025 and 3,456 subscribers, respectively.
A44: (B) | B44: In Q4 2022, as a result of the acquisition of Distributel Communications Limited (Distributel), our retail high-speed Internet, retail IPTV and retail residential NAS lines subscriber bases increased by 128,065, 2,315 and 64,498 subscribers, respectively.

Sheet CTS Summary p6
J1: Bell SCT
C3: T2 | D3: T2 | F3: % de | G3: Cumul | H3: Cumul | J3: % de
A4: (en millions de dollars canadiens, sauf indication contraire) (non audité) | C4: 2025 | D4: 2024 | F4: variation | G4: 2025 | H4: 2024 | J4: variation
A5: Bell SCT
A6: Produits d’exploitation
A7: Services sans fil | C7: 1783 | D7: 1788 | F7: -0.002796420582 | G7: 3542 | H7: 3562 | J7: -0.005614823133
A8: Services de données filaires | C8: 2025 | D8: 2034 | F8: -0.004424778761 | G8: 4039 | H8: 4046 | J8: -0.001730103806
A9: Services voix filaires | C9: 624 | D9: 677 | F9: -0.07828655835 | G9: 1253 | H9: 1360 | J9: -0.07867647059
A10: Autres services sur fil | C10: 77 | D10: 79 | F10: -0.0253164557 | G10: 156 | H10: 160 | J10: -0.025
A11: Produits externes tirés des services | C11: 4509 | D11: 4578 | F11: -0.01507208388 | G11: 8990 | H11: 9128 | J11: -0.01511831727
A12: Produits intersectoriels tirés des services | C12: 7 | D12: 8 | F12: -0.125 | G12: 14 | H12: 14 | J12: 0
A13: Produits d’exploitation tirés des services | C13: 4516 | D13: 4586 | F13: -0.01526384649 | G13: 9004 | H13: 9142 | J13: -0.01509516517
A14: Services sans fil | C14: 594 | D14: 568 | F14: 0.04577464789 | G14: 1218 | H14: 1252 | J14: -0.02715654952
A15: Services sur fil | C15: 224 | D15: 129 | F15: 0.7364341085 | G15: 358 | H15: 264 | J15: 0.3560606061
A16: Produits externes/d’exploitation tirés des produits | C16: 818 | D16: 697 | F16: 0.1736011478 | G16: 1576 | H16: 1516 | J16: 0.03957783641
A17: Total des produits externes | C17: 5327 | D17: 5275 | F17: 0.009857819905 | G17: 10566 | H17: 10644 | J17: -0.007328072153
A18: Total des produits d’exploitation | C18: 5334 | D18: 5283 | F18: 0.009653605906 | G18: 10580 | H18: 10658 | J18: -0.007318446238
A19: Coûts d’exploitation | C19: -2895 | D19: -2804 | F19: -0.03245363766 | G19: -5742 | H19: -5731 | J19: -0.001919385797
A20: BAIIA ajusté | C20: 2439 | D20: 2479 | F20: -0.01613553852 | G20: 4838 | H20: 4927 | J20: -0.01806373046
A21: Marge du BAIIA ajusté | C21: 45,7 % | D21: 0.4692409616 | F21: -1.2 | G21: 45,7 % | H21: 0.462 | J21: -0.5
A23: Dépenses d’investissement | C23: 727 | D23: 945 | F23: 0.2306878307 | G23: 1431 | H23: 1920 | J23: 0.2546875
A24: Intensité du capital | C24: 13,6 % | D24: 0.179 | F24: 4.3 | G24: 13,5 % | H24: 0.18 | J24: 4.5

Sheet CTS HIST Info p7
M1: Bell SCT – Tendance historique
C3: Cumul | H3: TOTAL
A4: (en millions de dollars canadiens, sauf indication contraire) (non audité) | C4: 2025 | E4: T2 25 | F4: T1 25 | H4: 2024 | J4: T4 24 | K4: T3 24 | L4: T2 24 | M4: T1 24
A5: Bell SCT
A6: Produits d’exploitation
A7: Services sans fil | C7: 3542 | E7: 1783 | F7: 1759 | H7: 7149 | J7: 1776 | K7: 1811 | L7: 1788 | M7: 1774
A8: Services de données filaires | C8: 4039 | E8: 2025 | F8: 2014 | H8: 8117 | J8: 2033 | K8: 2038 | L8: 2034 | M8: 2012
A9: Services voix filaires | C9: 1253 | E9: 624 | F9: 629 | H9: 2672 | J9: 649 | K9: 663 | L9: 677 | M9: 683
A10: Autres services sur fil | C10: 156 | E10: 77 | F10: 79 | H10: 318 | J10: 82 | K10: 76 | L10: 79 | M10: 81
A11: Produits externes tirés des services | C11: 8990 | E11: 4509 | F11: 4481 | H11: 18256 | J11: 4540 | K11: 4588 | L11: 4578 | M11: 4550
A12: Produits intersectoriels tirés des services | C12: 14 | E12: 7 | F12: 7 | H12: 27 | J12: 6 | K12: 7 | L12: 8 | M12: 6
A13: Produits d’exploitation tirés des services | C13: 9004 | E13: 4516 | F13: 4488 | H13: 18283 | J13: 4546 | K13: 4595 | L13: 4586 | M13: 4556
A14: Services sans fil | C14: 1218 | E14: 594 | F14: 624 | H14: 2715 | J14: 894 | K14: 569 | L14: 568 | M14: 684
A15: Services sur fil | C15: 358 | E15: 224 | F15: 134 | H15: 621 | J15: 241 | K15: 116 | L15: 129 | M15: 135
A16: Wireline equipment and other | C16: 21 | H16: 47 | J16: 8 | K16: 0 | L16: 28 | M16: 11
A17: Produits externes tirés des produits | C17: 1597 | H17: 3383 | J17: 688 | K17: 799 | L17: 1066 | M17: 830
A18: Produits intersectoriels tirés des produits | C18: 0 | H18: 0 | J18: 0 | K18: 0 | L18: 0 | M18: 0
A19: Produits externes/d’exploitation tirés des produits | C19: 1576 | E19: 818 | F19: 758 | H19: 3336 | J19: 1135 | K19: 685 | L19: 697 | M19: 819
A20: Total des produits externes | C20: 10566 | E20: 5327 | F20: 5239 | H20: 21592 | J20: 5675 | K20: 5273 | L20: 5275 | M20: 5369
A21: Total des produits d’exploitation | C21: 10580 | E21: 5334 | F21: 5246 | H21: 21619 | J21: 5681 | K21: 5280 | L21: 5283 | M21: 5375
A22: Coûts d’exploitation | C22: -5742 | E22: -2895 | F22: -2847 | H22: -11788 | J22: -3245 | K22: -2812 | L22: -2804 | M22: -2927
A23: BAIIA ajusté | C23: 4838 | E23: 2439 | F23: 2399 | H23: 9831 | J23: 2436 | K23: 2468 | L23: 2479 | M23: 2448
A24: Marge du BAIIA ajusté | C24: 0.4572778828 | E24: 0.4572553431 | F24: 0.457 | H24: 0.4547388871 | J24: 0.4287977469 | K24: 0.467 | L24: 0.4692409616 | M24: 0.455
A26: Dépenses d’investissement | C26: 1431 | E26: 727 | F26: 704 | H26: 3746 | J26: 907 | K26: 919 | L26: 945 | M26: 975
A27: Intensité du capital | C27: 0.1352551985 | E27: 0.1362954631 | F27: 0.134 | H27: 0.173 | J27: 0.16 | K27: 0.1740530303 | L27: 0.179 | M27: 0.181

Sheet CTS Metrics Summary p8
J1: Indicateurs de Bell SCT
C3: T2 | D3: T2 | F3: % de | G3: Cumul | H3: Cumul | J3: % de
A4: (en millions de dollars canadiens, sauf indication contraire) (non audité) | C4: 2025 | D4: 2024 | F4: variation | G4: 2025 | H4: 2024 | J4: variation
A5: Abonnés utilisant des téléphones mobiles (3)
A6: Activations brutes d’abonnés | C6: 510597 | D6: 575334 | F6: -0.1125207271 | G6: 979182 | H6: 1082773 | J6: -0.09567194601
A7: Services postpayés | C7: 331438 | D7: 389213 | F7: -0.1484405711 | G7: 651688 | H7: 756087 | J7: -0.1380780254
A8: Services prépayés | C8: 179159 | D8: 186121 | F8: -0.03740577366 | G8: 327494 | H8: 326686 | J8: 0.002473323007
A9: Activations nettes d’abonnés | C9: 94479 | D9: 131043 | F9: -0.2790229161 | G9: 93883 | H9: 156251 | J9: -0.3991526454
A10: Services postpayés | C10: 44547 | D10: 78500 | F10: -0.432522293 | G10: 34949 | H10: 123747 | J10: -0.7175769918
A11: Services prépayés | C11: 49932 | D11: 52543 | F11: -0.0496926327 | G11: 58934 | H11: 32504 | J11: 0.8131306916
A12: Abonnés à la fin de la période (B) (C) | C12: 10382457 | D12: 10337495 | F12: 0.004349409601 | G12: 10382457 | H12: 10337495 | J12: 0.004349409601
A13: Services postpayés | C13: 9565385 | D13: 9440775 | F13: 0.01319912825 | G13: 9565385 | H13: 9440775 | J13: 0.01319912825
A14: Services prépayés (B) (C) | C14: 817072 | D14: 896720 | F14: -0.08882148274 | G14: 817072 | H14: 896720 | J14: -0.08882148274
A15: Revenu moyen par utilisateur (RMU) combiné ($/mois) (3) (B) (C) (D) | C15: 57.61 | D15: 58.04 | F15: -0.007408683666 | G15: 57.35 | H15: 58.09 | J15: -0.0127388535
A16: Taux de désabonnement combiné (%) (moyen par mois) (3) | C16: 0.0136 | D16: 0.0147 | F16: 0.11 | G16: 0.0145 | H16: 0.0153 | J16: 0.08
A17: Services postpayés | C17: 0.0106 | D17: 0.0118 | F17: 0.12 | G17: 0.0113 | H17: 0.012 | J17: 0.07
A18: Services prépayés | C18: 0.0506 | D18: 0.046 | F18: -0.46 | G18: 0.0541 | H18: 0.0516 | J18: -0.25
A19: Activations d’abonnés utilisant des appareils mobiles (3)
A20: Activations nettes d’abonnés | C20: 97502 | D20: 87917 | F20: 0.1090232833 | G20: 133486 | H20: 154323 | J20: -0.1350219993
A21: Abonnés à la fin de la période | C21: 3176916 | D21: 2886871 | F21: 0.1004703709 | G21: 3176916 | H21: 2886871 | J21: 0.1004703709
A22: Abonnés des services Internet haute vitesse de détail (3)
A23: Activations nettes d’abonnés des services de détail | C23: 4999 | D23: 23841 | F23: -0.790319198 | G23: 14514 | H23: 54919 | J23: -0.7357198784
A24: Abonnés des services de détail à la fin de la période (A) (C) | C24: 4421961 | D24: 4520553 | F24: -0.02180972107 | G24: 4421961 | H24: 4520553 | J24: -0.02180972107
A25: Abonnés des services de télé sur protocole Internet (télé IP) de détail (3)
A26: (Pertes) activations nettes d’abonnés des services de télé IP de détail | C26: -15851 | D26: -1313 | F26: n.s. | G26: -31822 | H26: 12861 | J26: n.s.
A27: Abonnés des services de télé IP de détail à la fin de la période (A) (E) | C27: 2100690 | D27: 2124200 | F27: -0.01106769607 | G27: 2100690 | H27: 2124200 | J27: -0.01106769607
A28: Services d’accès au réseau (SAR) résidentiels de détail (3)
A29: Pertes nettes d’abonnés des SAR résidentiels de détail | C29: -44700 | D29: -53250 | F29: 0.1605633803 | G29: -92130 | H29: -97161 | J29: 0.0517800352
A30: Abonnés des SAR résidentiels de détail (A) | C30: 1727911 | D30: 1924456 | F30: -0.1021301604 | G30: 1727911 | H30: 1924456 | J30: -0.1021301604
A31: n.s. : non significatif
A33: (A) | B33: Au T1 2025, nous avons réduit notre clientèle d’abonnés des services Internet haute vitesse de détail, des services de télé IP de détail et des SAR résidentiels de détail de 80 666 abonnés, de 441 abonnés et de 14 150 abonnés, respectivement, au 31 mars 2025, car nous avons cessé de vendre de nouveaux forfaits des marques Distributel, Acanac, Oricom et B2B2C pour ces services. En outre, au début du T1 2025, nous avons réduit notre clientèle d'abonnés des services Internet haute vitesse de détail de 2 783 abonnés pour tenir compte des désactivations de clients de l’exercice précédent, à la suite d’un examen des comptes de nos abonnés.
A34: (B) | B34: Au T4 2024, nous avons retiré 124 216 abonnés des services prépayés utilisant des téléphones mobiles de Bell de notre clientèle d’abonnés des téléphones mobiles prépayés au 31 décembre 2024, car nous avons cessé de vendre de nouveaux forfaits pour ce service à compter de cette date.
A35: (C) | B35: Au T3 2024, nous avons retiré 77 971 abonnés des services prépayés utilisant des téléphones mobiles de Virgin Plus de notre clientèle d’abonnés des téléphones mobiles prépayés au 30 septembre 2024, car nous avons cessé de vendre de nouveaux forfaits pour ce service à compter de cette date. De plus, en raison d’une récente décision du Conseil de la radiodiffusion et des télécommunications canadiennes (CRTC) visant les services d’accès Internet haute vitesse de gros, nous ne sommes plus en mesure de revendre les services d’accès Internet par câble à de nouveaux clients dans notre zone de couverture des services sur fil depuis le 12 septembre 2024 et, par conséquent, nous avons retiré l’ensemble des 106 259 abonnés existants des services de câblodistribution dans la zone de couverture des services sur fil de notre clientèle d’abonnés aux services d’accès Internet haute vitesse de détail à cette date.
A36: (D) | B36: Le RMU combiné des abonnés utilisant des téléphones mobiles se définit comme les produits externes tirés des services sans fil du secteur Bell SCT divisés par le nombre moyen d’abonnés utilisant des téléphones mobiles pour la période visée, et est exprimé en unité monétaire par mois. Voir la note 3 Indicateurs de performance clés dans les notes annexes du présent rapport pour en savoir plus sur cette mesure.
A37: (E) | B37: Au T2 2024, nous avons augmenté le nombre d’abonnés des services de télé IP de détail de 40 997 pour aligner le calcul de la désactivation de nos services de télé en continu Télé Fibe sur celui de notre service de Télé Fibe traditionnel.

Sheet BCE Inc. Seg Info Summary p4 (hidden)
L1: BCE (1) (2)
L2: Segmented Data
A5: (In millions of Canadian dollars, except where otherwise indicated) (unaudited) | B5: Q4 2022 | C5: Q4 2021 | E5: $ change | F5: % change | H5: TOTAL 2022 | I5: TOTAL 2021 | K5: $ change | L5: % change
A7: Operating revenues
A8: Bell Wireless | B8: ='BCE Inc. Seg Info HIST p5'!G23 ->  | C8: ='BCE Inc. Seg Info HIST p5'!N23 -> 2475 | E8: =B8-C8 ->  | F8: =IF(OR((+E8/(ABS(C8)))>100%,(+E8/(ABS(C8)))<-100%),"n.m.",(+E8/(ABS(C8)))) ->  | H8: ='BCE Inc. Seg Info HIST p5'!E23 ->  | I8: ='BCE Inc. Seg Info HIST p5'!O23+'BCE Inc. Seg Info HIST p5'!P23+'BCE Inc. Seg Info HIST p5'!Q23+'BCE Inc. Seg Info HIST p5'!N23 -> 8999 | K8: =H8-I8 ->  | L8: =IF(OR((+K8/(ABS(I8)))>100%,(+K8/(ABS(I8)))<-100%),"n.m.",(+K8/(ABS(I8)))) -> 
A9: Bell Wireline | B9: ='BCE Inc. Seg Info HIST p5'!G24 ->  | C9: ='BCE Inc. Seg Info HIST p5'!N24 -> 3079 | E9: =B9-C9 ->  | F9: =IF(OR((+E9/(ABS(C9)))>100%,(+E9/(ABS(C9)))<-100%),"n.m.",(+E9/(ABS(C9)))) ->  | H9: ='BCE Inc. Seg Info HIST p5'!E24 ->  | I9: ='BCE Inc. Seg Info HIST p5'!O24+'BCE Inc. Seg Info HIST p5'!P24+'BCE Inc. Seg Info HIST p5'!Q24+'BCE Inc. Seg Info HIST p5'!N24 -> 12178 | K9: =H9-I9 ->  | L9: =IF(OR((+K9/(ABS(I9)))>100%,(+K9/(ABS(I9)))<-100%),"n.m.",(+K9/(ABS(I9)))) -> 
A10: Bell Media | B10: ='BCE Inc. Seg Info HIST p5'!G25 ->  | C10: ='BCE Inc. Seg Info HIST p5'!N25 -> 849 | E10: =B10-C10 ->  | F10: =IF(OR((+E10/(ABS(C10)))>100%,(+E10/(ABS(C10)))<-100%),"n.m.",(+E10/(ABS(C10)))) ->  | H10: ='BCE Inc. Seg Info HIST p5'!E25 ->  | I10: ='BCE Inc. Seg Info HIST p5'!O25+'BCE Inc. Seg Info HIST p5'!P25+'BCE Inc. Seg Info HIST p5'!Q25+'BCE Inc. Seg Info HIST p5'!N25 -> 3036 | K10: =H10-I10 ->  | L10: =IF(OR((+K10/(ABS(I10)))>100%,(+K10/(ABS(I10)))<-100%),"n.m.",(+K10/(ABS(I10)))) -> 
A11: Inter-segment eliminations | B11: ='BCE Inc. Seg Info HIST p5'!G26 ->  | C11: ='BCE Inc. Seg Info HIST p5'!N26 -> -194 | E11: =B11-C11 ->  | F11: =IF(OR((+E11/(ABS(C11)))>100%,(+E11/(ABS(C11)))<-100%),"n.m.",(+E11/(ABS(C11)))) ->  | H11: ='BCE Inc. Seg Info HIST p5'!E26 ->  | I11: ='BCE Inc. Seg Info HIST p5'!O26+'BCE Inc. Seg Info HIST p5'!P26+'BCE Inc. Seg Info HIST p5'!Q26+'BCE Inc. Seg Info HIST p5'!N26 -> -764 | K11: =H11-I11 ->  | L11: =IF(OR((+K11/(ABS(I11)))>100%,(+K11/(ABS(I11)))<-100%),"n.m.",(+K11/(ABS(I11)))) -> 
A12: Total | B12: ='BCE Inc. Seg Info HIST p5'!G27 ->  | C12: ='BCE Inc. Seg Info HIST p5'!N27 -> 6209 | E12: =B12-C12 ->  | F12: =IF(OR((+E12/(ABS(C12)))>100%,(+E12/(ABS(C12)))<-100%),"n.m.",(+E12/(ABS(C12)))) ->  | H12: ='BCE Inc. Seg Info HIST p5'!E27 ->  | I12: ='BCE Inc. Seg Info HIST p5'!O27+'BCE Inc. Seg Info HIST p5'!P27+'BCE Inc. Seg Info HIST p5'!Q27+'BCE Inc. Seg Info HIST p5'!N27 -> 23449 | K12: =H12-I12 ->  | L12: =IF(OR((+K12/(ABS(I12)))>100%,(+K12/(ABS(I12)))<-100%),"n.m.",(+K12/(ABS(I12)))) -> 
A14: Operating costs
A15: Bell Wireless | B15: ='BCE Inc. Seg Info HIST p5'!G30 ->  | C15: ='BCE Inc. Seg Info HIST p5'!N30 -> -1524 | E15: =B15-C15 ->  | F15: =IF(OR((+E15/(ABS(C15)))>100%,(+E15/(ABS(C15)))<-100%),"n.m.",(+E15/(ABS(C15)))) ->  | H15: ='BCE Inc. Seg Info HIST p5'!E30 ->  | I15: ='BCE Inc. Seg Info HIST p5'!O30+'BCE Inc. Seg Info HIST p5'!P30+'BCE Inc. Seg Info HIST p5'!Q30+'BCE Inc. Seg Info HIST p5'!N30 -> -5146 | K15: =H15-I15 ->  | L15: =IF(OR((+K15/(ABS(I15)))>100%,(+K15/(ABS(I15)))<-100%),"n.m.",(+K15/(ABS(I15)))) -> 
A16: Bell Wireline | B16: ='BCE Inc. Seg Info HIST p5'!G31 ->  | C16: ='BCE Inc. Seg Info HIST p5'!N31 -> -1753 | E16: =B16-C16 ->  | F16: =IF(OR((+E16/(ABS(C16)))>100%,(+E16/(ABS(C16)))<-100%),"n.m.",(+E16/(ABS(C16)))) ->  | H16: ='BCE Inc. Seg Info HIST p5'!E31 ->  | I16: ='BCE Inc. Seg Info HIST p5'!O31+'BCE Inc. Seg Info HIST p5'!P31+'BCE Inc. Seg Info HIST p5'!Q31+'BCE Inc. Seg Info HIST p5'!N31 -> -6863 | K16: =H16-I16 ->  | L16: =IF(OR((+K16/(ABS(I16)))>100%,(+K16/(ABS(I16)))<-100%),"n.m.",(+K16/(ABS(I16)))) -> 
A17: Bell Media | B17: ='BCE Inc. Seg Info HIST p5'!G32 ->  | C17: ='BCE Inc. Seg Info HIST p5'!N32 -> -696 | E17: =B17-C17 ->  | F17: =IF(OR((+E17/(ABS(C17)))>100%,(+E17/(ABS(C17)))<-100%),"n.m.",(+E17/(ABS(C17)))) ->  | H17: ='BCE Inc. Seg Info HIST p5'!E32 ->  | I17: ='BCE Inc. Seg Info HIST p5'!O32+'BCE Inc. Seg Info HIST p5'!P32+'BCE Inc. Seg Info HIST p5'!Q32+'BCE Inc. Seg Info HIST p5'!N32 -> -2311 | K17: =H17-I17 ->  | L17: =IF(OR((+K17/(ABS(I17)))>100%,(+K17/(ABS(I17)))<-100%),"n.m.",(+K17/(ABS(I17)))) -> 
A18: Inter-segment eliminations | B18: ='BCE Inc. Seg Info HIST p5'!G33 ->  | C18: ='BCE Inc. Seg Info HIST p5'!N33 -> 194 | E18: =B18-C18 ->  | F18: =IF(OR((+E18/(ABS(C18)))>100%,(+E18/(ABS(C18)))<-100%),"n.m.",(+E18/(ABS(C18)))) ->  | H18: ='BCE Inc. Seg Info HIST p5'!E33 ->  | I18: ='BCE Inc. Seg Info HIST p5'!O33+'BCE Inc. Seg Info HIST p5'!P33+'BCE Inc. Seg Info HIST p5'!Q33+'BCE Inc. Seg Info HIST p5'!N33 -> 764 | K18: =H18-I18 ->  | L18: =IF(OR((+K18/(ABS(I18)))>100%,(+K18/(ABS(I18)))<-100%),"n.m.",(+K18/(ABS(I18)))) -> 
A19: Total | B19: ='BCE Inc. Seg Info HIST p5'!G34 ->  | C19: ='BCE Inc. Seg Info HIST p5'!N34 -> -3779 | E19: =B19-C19 ->  | F19: =IF(OR((+E19/(ABS(C19)))>100%,(+E19/(ABS(C19)))<-100%),"n.m.",(+E19/(ABS(C19)))) ->  | H19: ='BCE Inc. Seg Info HIST p5'!E34 ->  | I19: ='BCE Inc. Seg Info HIST p5'!O34+'BCE Inc. Seg Info HIST p5'!P34+'BCE Inc. Seg Info HIST p5'!Q34+'BCE Inc. Seg Info HIST p5'!N34 -> -13556 | K19: =H19-I19 ->  | L19: =IF(OR((+K19/(ABS(I19)))>100%,(+K19/(ABS(I19)))<-100%),"n.m.",(+K19/(ABS(I19)))) -> 
A21: Adjusted EBITDA
A22: Bell Wireless | B22: ='BCE Inc. Seg Info HIST p5'!G37 ->  | C22: ='BCE Inc. Seg Info HIST p5'!N37 -> 951 | E22: =B22-C22 ->  | F22: =IF(OR((+E22/(ABS(C22)))>100%,(+E22/(ABS(C22)))<-100%),"n.m.",(+E22/(ABS(C22)))) ->  | H22: ='BCE Inc. Seg Info HIST p5'!E37 ->  | I22: ='BCE Inc. Seg Info HIST p5'!O37+'BCE Inc. Seg Info HIST p5'!P37+'BCE Inc. Seg Info HIST p5'!Q37+'BCE Inc. Seg Info HIST p5'!N37 -> 3853 | K22: =H22-I22 ->  | L22: =IF(OR((+K22/(ABS(I22)))>100%,(+K22/(ABS(I22)))<-100%),"n.m.",(+K22/(ABS(I22)))) -> 
A23: Margin | B23: ='BCE Inc. Seg Info HIST p5'!G38 ->  | C23: ='BCE Inc. Seg Info HIST p5'!N38 -> 0.384 | F23: =((ROUND(B23,3)-ROUND(C23,3))*100) ->  | H23: ='BCE Inc. Seg Info HIST p5'!E38 ->  | I23: =I22/I8 -> 0.4281586843 | L23: =((ROUND(H23,3)-ROUND(I23,3))*100) -> 
A24: Bell Wireline | B24: ='BCE Inc. Seg Info HIST p5'!G39 ->  | C24: ='BCE Inc. Seg Info HIST p5'!N39 -> 1326 | E24: =B24-C24 ->  | F24: =IF(OR((+E24/(ABS(C24)))>100%,(+E24/(ABS(C24)))<-100%),"n.m.",(+E24/(ABS(C24)))) ->  | H24: ='BCE Inc. Seg Info HIST p5'!E39 ->  | I24: ='BCE Inc. Seg Info HIST p5'!O39+'BCE Inc. Seg Info HIST p5'!P39+'BCE Inc. Seg Info HIST p5'!Q39+'BCE Inc. Seg Info HIST p5'!N39 -> 5315 | K24: =H24-I24 ->  | L24: 0
A25: Margin | B25: ='BCE Inc. Seg Info HIST p5'!G40 ->  | C25: ='BCE Inc. Seg Info HIST p5'!N40 -> 0.431 | F25: =((ROUND(B25,3)-ROUND(C25,3))*100) ->  | H25: ='BCE Inc. Seg Info HIST p5'!E40 ->  | I25: =I24/I9 -> 0.4364427656 | L25: =((ROUND(H25,3)-ROUND(I25,3))*100) -> 
A26: Bell Media | B26: ='BCE Inc. Seg Info HIST p5'!G41 ->  | C26: ='BCE Inc. Seg Info HIST p5'!N41 -> 153 | E26: =B26-C26 ->  | F26: =IF(OR((+E26/(ABS(C26)))>100%,(+E26/(ABS(C26)))<-100%),"n.m.",(+E26/(ABS(C26)))) ->  | H26: ='BCE Inc. Seg Info HIST p5'!E41 ->  | I26: ='BCE Inc. Seg Info HIST p5'!O41+'BCE Inc. Seg Info HIST p5'!P41+'BCE Inc. Seg Info HIST p5'!Q41+'BCE Inc. Seg Info HIST p5'!N41 -> 725 | K26: =H26-I26 ->  | L26: =IF(OR((+K26/(ABS(I26)))>100%,(+K26/(ABS(I26)))<-100%),"n.m.",(+K26/(ABS(I26)))) -> 
A27: Margin | B27: ='BCE Inc. Seg Info HIST p5'!G42 ->  | C27: ='BCE Inc. Seg Info HIST p5'!N42 -> 0.18 | F27: =((ROUND(B27,3)-ROUND(C27,3))*100) ->  | H27: =('BCE Inc. Seg Info HIST p5'!E42) ->  | I27: =I26/I10 -> 0.238801054 | L27: =((ROUND(H27,3)-ROUND(I27,3))*100) -> 
A28: Total | B28: ='BCE Inc. Seg Info HIST p5'!G43 ->  | C28: ='BCE Inc. Seg Info HIST p5'!N43 -> 2430 | E28: =B28-C28 ->  | F28: =IF(OR((+E28/(ABS(C28)))>100%,(+E28/(ABS(C28)))<-100%),"n.m.",(+E28/(ABS(C28)))) ->  | H28: ='BCE Inc. Seg Info HIST p5'!E43 ->  | I28: ='BCE Inc. Seg Info HIST p5'!O43+'BCE Inc. Seg Info HIST p5'!P43+'BCE Inc. Seg Info HIST p5'!Q43+'BCE Inc. Seg Info HIST p5'!N43 -> 9893 | K28: =H28-I28 ->  | L28: =IF(OR((+K28/(ABS(I28)))>100%,(+K28/(ABS(I28)))<-100%),"n.m.",(+K28/(ABS(I28)))) -> 
A29: Margin | B29: ='BCE Inc. Seg Info HIST p5'!G44 ->  | C29: ='BCE Inc. Seg Info HIST p5'!N44 -> 0.391 | F29: =((ROUND(B29,3)-ROUND(C29,3))*100) ->  | H29: ='BCE Inc. Seg Info HIST p5'!E44 ->  | I29: =I28/I12 -> 0.4218943239 | L29: =((ROUND(I29,3)-ROUND(H29,3))*100) -> 
A31: Capital expenditures
A32: Bell Wireless | B32: =+'BCE Inc. Seg Info HIST p5'!G47 -> 308 | C32: =+'BCE Inc. Seg Info HIST p5'!N47 -> 273 | E32: =C32-B32 -> -35 | F32: =IF(OR((+E32/(ABS(C32)))>100%,(+E32/(ABS(C32)))<-100%),"n.m.",(+E32/(ABS(C32)))) -> -0.1282051282 | H32: =+'BCE Inc. Seg Info HIST p5'!E47 -> 1084 | I32: ='BCE Inc. Seg Info HIST p5'!O47+'BCE Inc. Seg Info HIST p5'!P47+'BCE Inc. Seg Info HIST p5'!Q47+'BCE Inc. Seg Info HIST p5'!N47 -> 1120 | K32: =I32-H32 -> 36 | L32: =IF(OR((+K32/(ABS(I32)))>100%,(+K32/(ABS(I32)))<-100%),"n.m.",(+K32/(ABS(I32)))) -> 0.03214285714
A33: Capital intensity (A)(4) | B33: =+'BCE Inc. Seg Info HIST p5'!G48 ->  | C33: =+'BCE Inc. Seg Info HIST p5'!N48 -> 0.1103030303 | F33: =((ROUND(C33,3)-ROUND(B33,3))*100) ->  | H33: ='BCE Inc. Seg Info HIST p5'!E48 ->  | I33: =I32/I8 -> 0.1244582731 | L33: =((ROUND(I33,3)-ROUND(H33,3))*100) -> 
A34: Bell Wireline | B34: =+'BCE Inc. Seg Info HIST p5'!G49 -> 1251 | C34: =+'BCE Inc. Seg Info HIST p5'!N49 -> 1141 | E34: =C34-B34 -> -110 | F34: =IF(OR((+E34/(ABS(C34)))>100%,(+E34/(ABS(C34)))<-100%),"n.m.",(+E34/(ABS(C34)))) -> -0.09640666082 | H34: =+'BCE Inc. Seg Info HIST p5'!E49 -> 3887 | I34: ='BCE Inc. Seg Info HIST p5'!O49+'BCE Inc. Seg Info HIST p5'!P49+'BCE Inc. Seg Info HIST p5'!Q49+'BCE Inc. Seg Info HIST p5'!N49 -> 3612 | K34: =I34-H34 -> -275 | L34: =IF(OR((+K34/(ABS(I34)))>100%,(+K34/(ABS(I34)))<-100%),"n.m.",(+K34/(ABS(I34)))) -> -0.0761351052
A35: Capital intensity | B35: =+'BCE Inc. Seg Info HIST p5'!G50 ->  | C35: =+'BCE Inc. Seg Info HIST p5'!N50 -> 0.370574862 | F35: =((ROUND(C35,3)-ROUND(B35,3))*100) ->  | H35: ='BCE Inc. Seg Info HIST p5'!E50 ->  | I35: =I34/I9 -> 0.296600427 | L35: =((ROUND(I35,3)-ROUND(H35,3))*100) -> 
A36: Bell Media | B36: =+'BCE Inc. Seg Info HIST p5'!G51 -> 79 | C36: =+'BCE Inc. Seg Info HIST p5'!N51 -> 52 | E36: =C36-B36 -> -27 | F36: =IF(OR((+E36/(ABS(C36)))>100%,(+E36/(ABS(C36)))<-100%),"n.m.",(+E36/(ABS(C36)))) -> -0.5192307692 | H36: =+'BCE Inc. Seg Info HIST p5'!E51 -> 162 | I36: ='BCE Inc. Seg Info HIST p5'!O51+'BCE Inc. Seg Info HIST p5'!P51+'BCE Inc. Seg Info HIST p5'!Q51+'BCE Inc. Seg Info HIST p5'!N51 -> 120 | K36: =I36-H36 -> -42 | L36: =IF(OR((+K36/(ABS(I36)))>100%,(+K36/(ABS(I36)))<-100%),"n.m.",(+K36/(ABS(I36)))) -> -0.35
A37: Capital intensity | B37: ='BCE Inc. Seg Info HIST p5'!G52 ->  | C37: ='BCE Inc. Seg Info HIST p5'!N52 -> 0.06124852768 | F37: =((ROUND(C37,3)-ROUND(B37,3))*100) ->  | H37: ='BCE Inc. Seg Info HIST p5'!E52 ->  | I37: =I36/I10 -> 0.0395256917 | L37: =((ROUND(I37,3)-ROUND(H37,3))*100) -> 
A38: Total | B38: ='BCE Inc. Seg Info HIST p5'!G53 ->  | C38: ='BCE Inc. Seg Info HIST p5'!N53 -> 1466 | E38: =C38-B38 ->  | F38: =IF(OR((+E38/(ABS(C38)))>100%,(+E38/(ABS(C38)))<-100%),"n.m.",(+E38/(ABS(C38)))) ->  | H38: ='BCE Inc. Seg Info HIST p5'!E53 ->  | I38: ='BCE Inc. Seg Info HIST p5'!O53+'BCE Inc. Seg Info HIST p5'!P53+'BCE Inc. Seg Info HIST p5'!Q53+'BCE Inc. Seg Info HIST p5'!N53 -> 4852 | K38: =I38-H38 ->  | L38: =IF(OR((+K38/(ABS(I38)))>100%,(+K38/(ABS(I38)))<-100%),"n.m.",(+K38/(ABS(I38)))) -> 
A39: Capital intensity | B39: ='BCE Inc. Seg Info HIST p5'!G54 ->  | C39: ='BCE Inc. Seg Info HIST p5'!N54 -> 0.2361088742 | F39: =((ROUND(C39,3)-ROUND(B39,3))*100) ->  | H39: ='BCE Inc. Seg Info HIST p5'!E54 ->  | I39: =I38/I12 -> 0.2069171393 | L39: =((ROUND(I39,3)-ROUND(H39,3))*100) -> 
A42: (A) Capital intensity is defined as capital expenditures divided by operating revenues.
A43: n.m. : not meaningful

Sheet Bell Wireless Summary p6 (hidden)
N2: Bell Wireless (1) (2)
D5: Q4 | F5: Q4 | J5: TOTAL | L5: TOTAL
B6: (In millions of Canadian dollars, except where otherwise indicated) (unaudited) | D6: 2022 | F6: 2021 | H6: % change | J6: 2022 | L6: 2021 | N6: % change
B7: Bell Wireless
B8: Operating revenues
B9: External service revenues | D9: ='Bell Wireless HIST p7'!F18 ->  | F9: ='Bell Wireless HIST p7'!M18 -> 1641 | H9: =IF(OR(((ABS(D9-F9)/F9))>100%,((ABS(D9-F9)/F9))<-100%),"n.m.",((D9-F9)/ABS(F9))) ->  | J9: ='Bell Wireless HIST p7'!D18 ->  | L9: ='Bell Wireless HIST p7'!N18+'Bell Wireless HIST p7'!O18+'Bell Wireless HIST p7'!P18+'Bell Wireless HIST p7'!M18 -> 6355 | N9: =IF(OR(((ABS(J9-L9)/L9))>100%,((ABS(J9-L9)/L9))<-100%),"n.m.",((J9-L9)/ABS(L9))) -> 
B10: Inter-segment service revenues | D10: ='Bell Wireless HIST p7'!F19 ->  | F10: ='Bell Wireless HIST p7'!M19 -> 11 | H10: =IF(OR(((ABS(D10-F10)/F10))>100%,((ABS(D10-F10)/F10))<-100%),"n.m.",((D10-F10)/ABS(F10))) ->  | J10: ='Bell Wireless HIST p7'!D19 ->  | L10: ='Bell Wireless HIST p7'!N19+'Bell Wireless HIST p7'!O19+'Bell Wireless HIST p7'!P19+'Bell Wireless HIST p7'!M19 -> 45 | N10: =IF(OR(((ABS(J10-L10)/L10))>100%,((ABS(J10-L10)/L10))<-100%),"n.m.",((J10-L10)/ABS(L10))) -> 
B11: Operating service revenues | D11: ='Bell Wireless HIST p7'!F20 ->  | F11: ='Bell Wireless HIST p7'!M20 -> 1652 | H11: =IF(OR(((ABS(D11-F11)/F11))>100%,((ABS(D11-F11)/F11))<-100%),"n.m.",((D11-F11)/ABS(F11))) ->  | J11: ='Bell Wireless HIST p7'!D20 ->  | L11: ='Bell Wireless HIST p7'!N20+'Bell Wireless HIST p7'!O20+'Bell Wireless HIST p7'!P20+'Bell Wireless HIST p7'!M20 -> 6400 | N11: =IF(OR(((ABS(J11-L11)/L11))>100%,((ABS(J11-L11)/L11))<-100%),"n.m.",((J11-L11)/ABS(L11))) -> 
B12: External product revenues | D12: ='Bell Wireless HIST p7'!F21 ->  | F12: ='Bell Wireless HIST p7'!M21 -> 821 | J12: ='Bell Wireless HIST p7'!D21 ->  | L12: ='Bell Wireless HIST p7'!N21+'Bell Wireless HIST p7'!O21+'Bell Wireless HIST p7'!P21+'Bell Wireless HIST p7'!M21 -> 2593
B13: Inter-segment product revenues | D13: ='Bell Wireless HIST p7'!F22 ->  | F13: ='Bell Wireless HIST p7'!M22 -> 2 | H13: 0 | J13: ='Bell Wireless HIST p7'!D22 ->  | L13: ='Bell Wireless HIST p7'!N22+'Bell Wireless HIST p7'!O22+'Bell Wireless HIST p7'!P22+'Bell Wireless HIST p7'!M22 -> 6
B14: Operating product revenues | D14: ='Bell Wireless HIST p7'!F23 ->  | F14: ='Bell Wireless HIST p7'!M23 -> 823 | J14: ='Bell Wireless HIST p7'!D23 ->  | L14: ='Bell Wireless HIST p7'!N23+'Bell Wireless HIST p7'!O23+'Bell Wireless HIST p7'!P23+'Bell Wireless HIST p7'!M23 -> 2599
B15: Total external revenues | D15: ='Bell Wireless HIST p7'!F24 ->  | F15: ='Bell Wireless HIST p7'!M24 -> 2462 | J15: =J9+J12 ->  | L15: =L9+L12 -> 8948
B16: Total operating revenues | D16: ='Bell Wireless HIST p7'!F26 ->  | F16: ='Bell Wireless HIST p7'!M26 -> 2475 | J16: ='Bell Wireless HIST p7'!D26 ->  | L16: ='Bell Wireless HIST p7'!N26+'Bell Wireless HIST p7'!O26+'Bell Wireless HIST p7'!P26+'Bell Wireless HIST p7'!M26 -> 8999
B17: Operating costs | D17: ='Bell Wireless HIST p7'!F27 ->  | F17: ='Bell Wireless HIST p7'!M27 -> -1524 | J17: ='Bell Wireless HIST p7'!D27 ->  | L17: ='Bell Wireless HIST p7'!N27+'Bell Wireless HIST p7'!O27+'Bell Wireless HIST p7'!P27+'Bell Wireless HIST p7'!M27 -> -5146
B18: Adjusted EBITDA | D18: ='Bell Wireless HIST p7'!F28 ->  | F18: ='Bell Wireless HIST p7'!M28 -> 951 | J18: ='Bell Wireless HIST p7'!D28 ->  | L18: ='Bell Wireless HIST p7'!N28+'Bell Wireless HIST p7'!O28+'Bell Wireless HIST p7'!P28+'Bell Wireless HIST p7'!M28 -> 3853
B19: Adjusted EBITDA margin | D19: ='Bell Wireless HIST p7'!F29 ->  | F19: ='Bell Wireless HIST p7'!M29 -> 0.3842424242 | H19: =((ROUND(D19,3)-ROUND(F19,3))*100) ->  | J19: ='Bell Wireless HIST p7'!D29 ->  | L19: =L18/L16 -> 0.4281586843 | N19: =((ROUND(J19,3)-ROUND(L19,3))*100) -> 
B20: Capital expenditures | D20: ='Bell Wireless HIST p7'!F33 -> 308 | F20: ='Bell Wireless HIST p7'!M33 -> 273 | H20: =IF(OR(((ABS(F20-D20)/F20))>=100%,((ABS(F20-D20)/F20))<=-100%),"n.m.",((F20-D20)/ABS(F20))) -> -0.1282051282 | J20: ='Bell Wireless HIST p7'!D33 -> 1084 | L20: ='Bell Wireless HIST p7'!N33+'Bell Wireless HIST p7'!O33+'Bell Wireless HIST p7'!P33+'Bell Wireless HIST p7'!M33 -> 1120 | N20: =IF(OR(((ABS(L20-J20)/L20))>=100%,((ABS(L20-J20)/L20))<=-100%),"n.m.",((L20-J20)/ABS(L20))) -> 0.03214285714
B21: Capital intensity | D21: ='Bell Wireless HIST p7'!F34 ->  | F21: ='Bell Wireless HIST p7'!M34 -> 0.1103030303 | H21: =((ROUND(F21,3)-ROUND(D21,3))*100) ->  | J21: ='Bell Wireless HIST p7'!D34 ->  | L21: =L20/L16 -> 0.1244582731 | N21: =((ROUND(L21,3)-ROUND(J21,3))*100) -> 
B23: Mobile phone subscribers(4)
B24: Gross subscriber activations | D24: ='Bell Wireless HIST p7'!F37 -> 605034 | F24: ='Bell Wireless HIST p7'!M37 -> 495076 | H24: =IF(OR(((ABS(D24-F24)/F24))>100%,((ABS(D24-F24)/F24))<-100%),"n.m.",((D24-F24)/ABS(F24))) -> 0.222103273 | J24: ='Bell Wireless HIST p7'!D37 -> 1953912 | L24: ='Bell Wireless HIST p7'!N37+'Bell Wireless HIST p7'!O37+'Bell Wireless HIST p7'!P37+'Bell Wireless HIST p7'!M37 -> 1653771 | N24: =IF(OR(((ABS(J24-L24)/L24))>100%,((ABS(J24-L24)/L24))<-100%),"n.m.",((J24-L24)/ABS(L24))) -> 0.1814888518
B25: Postpaid | D25: ='Bell Wireless HIST p7'!F38 -> 467294 | F25: ='Bell Wireless HIST p7'!M38 -> 373621 | H25: 0.2507166353 | J25: ='Bell Wireless HIST p7'!D38 -> 1355772 | L25: ='Bell Wireless HIST p7'!N38+'Bell Wireless HIST p7'!O38+'Bell Wireless HIST p7'!P38+'Bell Wireless HIST p7'!M38 -> 1201659 | N25: 0.1282501941
B26: Prepaid | D26: ='Bell Wireless HIST p7'!F39 -> 137740 | F26: ='Bell Wireless HIST p7'!M39 -> 121455 | H26: 0.134082582 | J26: ='Bell Wireless HIST p7'!D39 -> 598140 | L26: ='Bell Wireless HIST p7'!N39+'Bell Wireless HIST p7'!O39+'Bell Wireless HIST p7'!P39+'Bell Wireless HIST p7'!M39 -> 452112 | N26: 0.3229907634
B27: Net subscriber activations (losses) | D27: ='Bell Wireless HIST p7'!F40 -> 122621 | F27: ='Bell Wireless HIST p7'!M40 -> 109726 | H27: 0.1175200044 | J27: ='Bell Wireless HIST p7'!D40 -> 489901 | L27: ='Bell Wireless HIST p7'!N40+'Bell Wireless HIST p7'!O40+'Bell Wireless HIST p7'!P40+'Bell Wireless HIST p7'!M40 -> 294842 | N27: 0.6615712822
B28: Postpaid | D28: ='Bell Wireless HIST p7'!F41 -> 154617 | F28: ='Bell Wireless HIST p7'!M41 -> 109527 | H28: 0.411679312 | J28: ='Bell Wireless HIST p7'!D41 -> 439842 | L28: ='Bell Wireless HIST p7'!N41+'Bell Wireless HIST p7'!O41+'Bell Wireless HIST p7'!P41+'Bell Wireless HIST p7'!M41 -> 301706 | N28: 0.4578496947
B29: Prepaid | D29: ='Bell Wireless HIST p7'!F42 -> -31996 | F29: ='Bell Wireless HIST p7'!M42 -> 199 | H29: n.m. | J29: ='Bell Wireless HIST p7'!D42 -> 50059 | L29: ='Bell Wireless HIST p7'!N42+'Bell Wireless HIST p7'!O42+'Bell Wireless HIST p7'!P42+'Bell Wireless HIST p7'!M42 -> -6864 | N29: n.m.
B30: Subscribers end of period (EOP) | D30: ='Bell Wireless HIST p7'!F43 -> 9949086 | F30: ='Bell Wireless HIST p7'!M43 -> 9459185.125 | H30: 0.05179102303 | J30: ='Bell Wireless HIST p7'!D43 -> 9949086 | L30: =F30 -> 9459185.125 | N30: 0.05179102303
B31: Postpaid | D31: ='Bell Wireless HIST p7'!F44 -> 9069887 | F31: ='Bell Wireless HIST p7'!M44 -> 8630045.225 | H31: 0.05096633484 | J31: ='Bell Wireless HIST p7'!D44 -> 9069887 | L31: =F31 -> 8630045.225 | N31: 0.05096633484
B32: Prepaid | D32: ='Bell Wireless HIST p7'!F45 -> 879199 | F32: ='Bell Wireless HIST p7'!M45 -> 829139.9 | H32: 0.0603747329 | J32: ='Bell Wireless HIST p7'!D45 -> 879199 | L32: 829139.9 | N32: 0.0603747329
B33: Blended average revenue per user (ARPU) ($/month)(A)(4) | D33: ='Bell Wireless HIST p7'!F46 -> 58.88 | F33: ='Bell Wireless HIST p7'!M46 -> 58.6084888 | H33: =IF(OR(((ABS(D33-F33)/F33))>100%,((ABS(D33-F33)/F33))<-100%),"n.m.",((D33-F33)/ABS(F33))) -> 0.004632625846 | J33: ='Bell Wireless HIST p7'!D46 -> 59.3 | L33: ='Bell Wireless HIST p7'!K46 -> 57.6644238 | N33: 0.02836369623
B35: Blended churn (%) (average per month)(4) | D35: ='Bell Wireless HIST p7'!F48 -> 0.0163 | F35: ='Bell Wireless HIST p7'!M48 -> 0.0137295 | H35: =((ROUND(F35,4)-ROUND(D35,4))*100) -> -0.26 | J35: ='Bell Wireless HIST p7'!D48 -> 0.0127 | L35: ='Bell Wireless HIST p7'!K48 -> 0.0123074 | N35: =((ROUND(L35,4)-ROUND(J35,4))*100) -> -0.04
B36: Postpaid | D36: ='Bell Wireless HIST p7'!F49 -> 0.0122 | F36: ='Bell Wireless HIST p7'!M49 -> 0.010782 | H36: =((ROUND(F36,4)-ROUND(D36,4))*100) -> -0.14 | J36: ='Bell Wireless HIST p7'!D49 -> 0.0092 | L36: ='Bell Wireless HIST p7'!K49 -> 0.0093212 | N36: =((ROUND(L36,4)-ROUND(J36,4))*100) -> 0.01
B37: Prepaid | D37: ='Bell Wireless HIST p7'!F50 -> 0.0574 | F37: ='Bell Wireless HIST p7'!M50 -> 0.0441512 | H37: -1.32 | J37: ='Bell Wireless HIST p7'!D50 -> 0.0485 | L37: ='Bell Wireless HIST p7'!K50 -> 0.0430751 | N37: -0.54
B38: Mobile connected device subscribers(4)
B39: Net subscriber activations | D39: ='Bell Wireless HIST p7'!F52 -> 104447 | F39: ='Bell Wireless HIST p7'!M52 -> 38998 | H39: =IF(OR(((ABS(D39-F39)/F39))>100%,((ABS(D39-F39)/F39))<-100%),"n.m.",((D39-F39)/ABS(F39))) -> n.m. | J39: ='Bell Wireless HIST p7'!D52 -> 202024 | L39: ='Bell Wireless HIST p7'!N52+'Bell Wireless HIST p7'!O52+'Bell Wireless HIST p7'!P52+'Bell Wireless HIST p7'!M52 -> 193641 | N39: =IF(OR(((ABS(J39-L39)/L39))>100%,((ABS(J39-L39)/L39))<-100%),"n.m.",((J39-L39)/ABS(L39))) -> 0.04329145171
B40: Subscribers EOP | D40: ='Bell Wireless HIST p7'!F53 -> 2451818 | F40: ='Bell Wireless HIST p7'!M53 -> 2249794 | H40: 0.08979666583 | J40: ='Bell Wireless HIST p7'!D53 -> 2451818 | L40: ='Bell Wireless HIST p7'!K53 -> 2249794 | N40: 0.08979666583
B42: n.m. : not meaningful
B44: (A) | C44: Mobile phone blended ARPU is calculated by dividing wireless operating service revenues by the average mobile phone subscriber base for the specified period and is expressed as a dollar unit per month.
B45: (B) | C45: In Q3 2022, as a result of the acquisition of Xplore Mobile and other related companies, our retail mobility subscriber base increased by XXX,XXX subscribers

Sheet Bell Wireless HIST p7 (hidden)
A1: CORPORATE | B1: METRICS
A2: ACTUAL | B2: GLOBAL in Metrics
A3: ALL_DS | B3: ACTUAL | C3: All Data Sources
A4: All Posting Levels | B4: ALL CUSTOMERS
A5: Canadian Dollar | B5: All Data Sources
A6: All Trading Partners | B6: ALL CHANNELS
A7: Year To Date | B7: ALL NETWORKS
A8: Quarter to date | B8: ALL_POST_PRE | R8: =_xll.EPMOlapMemberO("[POST_PREPAID].[PARENTH1].[PREPAID]","","PREPAID","","000") -> 
B9: WIRELESS_PROD
A10: WRLESS | B10: ALL REGIONS
B11: Year To Date | D11: 2022.Q4 - 2022.Q4
A12: TP_IC - All Intercos | P12: Bell Wireless - Historical Trend (2)
A13: TP_EXTERNAL - External (Third Party)
B15: (In millions of Canadian dollars, except where otherwise indicated) (unaudited) | D15: TOTAL 2022 | F15: Q4 22 | G15: Q3 22 | H15: Q2 22 | I15: Q1 22 | K15: TOTAL 2021 | M15: Q4 21 | N15: Q3 21 | O15: Q2 21 | P15: Q1 21 | R15: CY CHECK | S15: PY CHECK
B16: Bell Wireless
B17: Operating revenues
A18: T401010 | B18: External service revenues | D18: =(ROUND(_xll.EPMRetrieveData($A$1,$A$18,$A$10,$A$2,$A$3,$A$4,$A$5,$A$13,$A$7,D11)/1000000,0)) ->  | F18: =D18-G18-H18-I18 ->  | G18: 1759 | H18: 1692 | I18: 1635 | K18: 6355 | M18: 1641 | N18: 1642 | O18: 1569 | P18: 1503 | R18: =SUM(F18:I18)=D18 ->  | S18: =P18+O18+N18+M18=K18 -> TRUE
B19: Inter-segment service revenues | D19: =((ROUND(_xll.EPMRetrieveData($A$1,$A$18,$A$10,$A$2,$A$3,$A$4,$A$5,$A$12,$A$7,D11)/1000000,0))) ->  | F19: =D19-G19-H19-I19 ->  | G19: 10 | H19: 11 | I19: 11 | K19: 45 | M19: 11 | N19: 12 | O19: 11 | P19: 11 | R19: =SUM(F19:I19)=D19 ->  | S19: =P19+O19+N19+M19=K19 -> TRUE
B20: Operating service revenues | D20: =D19+D18 ->  | F20: =D20-G20-H20-I20 ->  | G20: 1769 | H20: 1703 | I20: 1646 | K20: 6400 | M20: 1652 | N20: 1654 | O20: 1580 | P20: 1514 | S20: TRUE
A21: LC-4261100 - Wireline Product Revenue | B21: External product revenues | D21: =(ROUND(_xll.EPMRetrieveData($A$1,$A$22,$A$10,$A$2,$A$3,$A$4,$A$5,$A$13,$A$7,D11)/1000000,0)) ->  | G21: 692 | H21: 542 | I21: 563 | K21: 2593 | M21: 821 | N21: 642 | O21: 546 | P21: 584 | S21: TRUE
A22: t401040 | B22: Inter-segment product revenues | D22: =ROUND(_xll.EPMRetrieveData($A$1,$A$22,$A$10,$A$2,$A$3,$A$4,$A$5,$A$12,$A$7,D11)/1000000,0) ->  | F22: =D22-G22-H22-I22 ->  | G22: 5 | H22: 1 | I22: 1 | K22: 6 | M22: 2 | N22: 0 | O22: 2 | P22: 2 | S22: TRUE
A23: T401000 | B23: Operating product revenues | D23: =D22+D21 ->  | G23: 697 | H23: 543 | I23: 564 | J23: =J22+J21 -> 0 | K23: 2599 | M23: 823 | N23: 642 | O23: 548 | P23: 586 | S23: TRUE
A24: LC-4999920 - Hardware - Intercompany | B24: Total external revenues | D24: =ROUND(_xll.EPMRetrieveData($A$1,$A$23,$A$10,$A$2,$A$3,$A$4,$A$5,$A$13,$A$7,D11)/1000000,0) ->  | G24: 2451 | H24: 2234 | I24: 2198 | K24: 8948 | M24: 2462 | N24: 2284 | O24: 2115 | P24: 2087 | S24: TRUE
B25: Inter-segment | G25: 0 | H25: 0 | N25: 0 | O25: 0 | R25: TRUE | S25: TRUE
A26: t401070 | B26: Total operating revenues | D26: ='BCE Inc. Seg Info HIST p5'!E23 ->  | G26: 2466 | H26: 2246 | I26: 2210 | K26: 8999 | M26: 2475 | N26: 2296 | O26: 2128 | P26: 2100 | S26: TRUE
B27: Operating costs | D27: ='BCE Inc. Seg Info HIST p5'!E30 ->  | G27: -1377 | H27: -1197 | I27: -1201 | K27: -5146 | M27: -1524 | N27: -1286 | O27: -1159 | P27: -1177 | S27: TRUE
B28: Adjusted EBITDA | D28: ='BCE Inc. Seg Info HIST p5'!E37 ->  | G28: 1089 | H28: 1049 | I28: 1009 | K28: 3853 | M28: 951 | N28: 1010 | O28: 969 | P28: 923 | S28: TRUE
B29: Adjusted EBITDA margin | D29: =D28/D26 ->  | F29: =F28/F26 ->  | G29: 0.442 | H29: 0.4670525378 | I29: 0.456561086 | K29: 0.4281586843 | M29: 0.3842424242 | N29: 0.4398954704 | O29: 0.4553571429 | P29: 0.4395238095
B30: Adjusted EBITDA margin (External service revenues) | R30: TRUE | S30: TRUE
B31: Adjusted EBITDA margin (Operating service revenues) | R31: TRUE | S31: TRUE
B33: Capital expenditures | D33: ='BCE Inc. Seg Info HIST p5'!E47 -> 1084 | F33: ='BCE Inc. Seg Info HIST p5'!G47 -> 308 | G33: 248 | H33: 280 | I33: ='BCE Inc. Seg Info HIST p5'!J47 -> 248 | J33: ='BCE Inc. Seg Info HIST p5'!K47 -> 0 | K33: ='BCE Inc. Seg Info HIST p5'!L47 -> 1120 | L33: ='BCE Inc. Seg Info HIST p5'!M47 -> 0 | M33: ='BCE Inc. Seg Info HIST p5'!N47 -> 273 | N33: ='BCE Inc. Seg Info HIST p5'!O47 -> 255 | O33: ='BCE Inc. Seg Info HIST p5'!P47 -> 306 | P33: ='BCE Inc. Seg Info HIST p5'!Q47 -> 286 | R33: TRUE | S33: TRUE
B34: Capital intensity | D34: ='BCE Inc. Seg Info HIST p5'!E48 ->  | F34: ='BCE Inc. Seg Info HIST p5'!G48 ->  | G34: 0.100567721 | H34: 0.124666073 | I34: ='BCE Inc. Seg Info HIST p5'!J48 -> 0.1122171946 | J34: ='BCE Inc. Seg Info HIST p5'!K48 ->  | K34: ='BCE Inc. Seg Info HIST p5'!L48 -> 0.1244582731 | L34: ='BCE Inc. Seg Info HIST p5'!M48 ->  | M34: ='BCE Inc. Seg Info HIST p5'!N48 -> 0.1103030303 | N34: ='BCE Inc. Seg Info HIST p5'!O48 -> 0.1110627178 | O34: ='BCE Inc. Seg Info HIST p5'!P48 -> 0.1437969925 | P34: ='BCE Inc. Seg Info HIST p5'!Q48 -> 0.1361904762
B36: Mobile phone subscribers
B37: Gross subscriber activations | D37: 1953912 | F37: =D37-G37-H37-I37 -> 605034 | G37: 583700 | H37: 415270 | I37: 349908 | K37: 1653771 | M37: 495076 | N37: 470165 | O37: 348403 | P37: 340127 | R37: TRUE | S37: TRUE
B38: Postpaid | D38: 1355772 | F38: =D38-G38-H38-I38 -> 467294 | G38: 391165 | H38: 266600 | I38: 230713 | K38: 1201659 | M38: 373621 | N38: 336328 | O38: 242720 | P38: 248990 | R38: TRUE | S38: TRUE
B39: Prepaid | D39: 598140 | F39: =D39-G39-H39-I39 -> 137740 | G39: 192535 | H39: 148670 | I39: 119195 | K39: 452112 | M39: 121455 | N39: 133837 | O39: 105683 | P39: 91137 | R39: =SUM(F39:I39)=D39 -> TRUE | S39: TRUE
B40: Net subscriber activations (losses) | D40: 489901 | F40: 122621 | G40: 224343 | H40: 110761 | I40: 32176 | K40: 294842 | M40: 109726 | N40: 136464 | O40: 46247 | P40: 2405 | R40: TRUE | S40: TRUE
B41: Postpaid | D41: 439842 | F41: 154617 | G41: 167798 | H41: 83197 | I41: 34230 | K41: 301706 | M41: 109527 | N41: 114821 | O41: 44433 | P41: 32925 | R41: TRUE | S41: TRUE
B42: Prepaid | D42: 50059 | F42: -31996 | G42: 56545 | H42: 27564 | I42: -2054 | K42: -6864 | M42: 199 | N42: 21643 | O42: 1814 | P42: -30520 | R42: TRUE | S42: TRUE
B43: Subscribers EOP | D43: 9949086 | F43: =D43 -> 9949086 | G43: 9826465.125 | H43: 9602122.125 | I43: 9491361.125 | K43: 9459185.125 | M43: 9459185.125 | N43: 9349459.125 | O43: 9212995.125 | P43: 9166748 | R43: FALSE
B44: Postpaid | D44: 9069887 | F44: =D44 -> 9069887 | G44: 8915270.225 | H44: 8747472.225 | I44: 8664275.225 | K44: 8630045.225 | M44: 8630045.225 | N44: 8520518.225 | O44: 8405697.225 | P44: 8361264 | R44: FALSE
B45: Prepaid | D45: 879199 | F45: =D45 -> 879199 | G45: 911194.9 | H45: 854649.9 | I45: 827085.9 | K45: 829139.9 | M45: 829139.9 | N45: 828940.9 | O45: 807297.9 | P45: 805484 | R45: FALSE
B46: Blended ARPU ($/month) | D46: 59.3 | F46: 58.88 | G46: 60.76 | H46: 59.5431934 | I46: 57.9834894 | K46: 57.6644238 | M46: 58.6084888 | N46: 59.4662306 | O46: 57.3603057 | P46: 55.1743833
R47: TRUE | S47: TRUE
B48: Blended churn (%) (average per month) | D48: 0.0127 | F48: 0.0163 | G48: 0.0124 | H48: 0.0107375 | I48: 0.0112421 | K48: 0.0123074 | M48: 0.0137295 | N48: 0.0120897 | O48: 0.0110435 | P48: 0.0123
B49: Postpaid | D49: 0.0092 | F49: 0.0122 | G49: 0.009 | H49: 0.0075217 | I49: 0.0079129 | K49: 0.0093212 | M49: 0.010782 | N49: 0.0092504 | O49: 0.0082737 | P49: 0.0089
B50: Prepaid | D50: 0.0485 | F50: 0.0574 | G50: 0.0458 | H50: 0.0440907 | I50: 0.0460511 | K50: 0.0430751 | M50: 0.0441512 | N50: 0.041469 | O50: 0.0398034 | P50: 0.0468
B51: Mobile connected device subscribers
B52: Net subscriber activations (losses) | D52: 202024 | F52: =D52-G52-H52-I52 -> 104447 | G52: 49044 | H52: -344 | I52: 48877 | K52: 193641 | M52: 38998 | N52: 33035 | O52: 47449 | P52: 74159 | R52: TRUE | S52: TRUE
B53: Subscribers EOP | D53: 2451818 | F53: =D53 -> 2451818 | G53: 2347371 | H53: 2298327 | I53: 2298671 | K53: 2249794 | M53: 2249794 | N53: 2210796 | O53: 2177761 | P53: 2130312
B55: (A) | C55: In Q3 2022, as a result of the acquisition of Xplore Mobile and other related companies, our retail mobility subscriber base increased by XXX,XXX subscribers
C57: Operating service revenues | D57: =SUM(D18:D19)=D20 ->  | F57: =SUM(F18:F19)=F20 ->  | G57: =SUM(G18:G19)=G20 -> TRUE | H57: =SUM(H18:H19)=H20 -> TRUE | I57: =SUM(I18:I19)=I20 -> TRUE | K57: TRUE | M57: TRUE | N57: TRUE | O57: TRUE | P57: TRUE
C58: Operating product revenues | D58: =(D21+D22)=D23 ->  | F58: =(F21+F22)=F23 ->  | G58: =(G21+G22)=G23 -> TRUE | H58: =(H21+H22)=H23 -> TRUE | I58: =(I21+I22)=I23 -> TRUE | K58: TRUE | M58: TRUE | N58: TRUE | O58: TRUE | P58: TRUE
C59: Total external revenues | D59: =(D18+D21)=D24 ->  | F59: =(F18+F21)=F24 ->  | G59: =(G18+G21)=G24 -> TRUE | H59: =(H18+H21)=H24 -> TRUE | I59: =(I18+I21)=I24 -> TRUE | K59: TRUE | M59: TRUE | N59: TRUE | O59: TRUE | P59: TRUE
C60: Total operating revenues | D60: =(D20+D23)=D26 ->  | F60: =(F20+F23)=F26 ->  | G60: =(G20+G23)=G26 -> TRUE | H60: =(H20+H23)=H26 -> TRUE | I60: =(I20+I23)=I26 -> TRUE | K60: TRUE | M60: TRUE | N60: TRUE | O60: TRUE | P60: TRUE
C61: Adjusted EBITDA | D61: =(D26+D27)=D28 ->  | F61: =(F26+F27)=F28 ->  | G61: =(G26+G27)=G28 -> TRUE | H61: =(H26+H27)=H28 -> TRUE | I61: =(I26+I27)=I28 -> TRUE | K61: TRUE | M61: TRUE | N61: TRUE | O61: TRUE | P61: TRUE

Sheet Bell Wireline Summary p8 (hidden)
M2: Bell Wireline (1) (2)
C5: Q4 | E5: Q4 | I5: TOTAL | K5: TOTAL
A6: (In millions of Canadian dollars, except where otherwise indicated) (unaudited) | C6: 2022 | E6: 2021 | G6: % change | I6: 2022 | K6: 2021 | M6: % change
A7: Bell Wireline
A8: Operating revenues
A9: Data | C9: ='Bell Wireline HIST p9'!G24 ->  | E9: ='Bell Wireline HIST p9'!N24 -> 1986 | G9: =IF(OR(((ABS(C9-E9)/E9))>100%,((ABS(C9-E9)/E9))<-100%),"n.m.",((C9-E9)/ABS(E9))) ->  | H9: =(C9-F9)/F9 ->  | I9: ='Bell Wireline HIST p9'!E24 ->  | K9: ='Bell Wireline HIST p9'!O24+'Bell Wireline HIST p9'!P24+'Bell Wireline HIST p9'!Q24+'Bell Wireline HIST p9'!N24 -> 7871 | M9: =IF(OR(((ABS(I9-K9)/K9))>100%,((ABS(I9-K9)/K9))<-100%),"n.m.",((I9-K9)/ABS(K9))) -> 
A10: Voice | C10: ='Bell Wireline HIST p9'!G25 ->  | E10: ='Bell Wireline HIST p9'!N25 -> 779 | G10: =IF(OR(((ABS(C10-E10)/E10))>100%,((ABS(C10-E10)/E10))<-100%),"n.m.",((C10-E10)/ABS(E10))) ->  | I10: ='Bell Wireline HIST p9'!E25 ->  | K10: ='Bell Wireline HIST p9'!O25+'Bell Wireline HIST p9'!P25+'Bell Wireline HIST p9'!Q25+'Bell Wireline HIST p9'!N25 -> 3154 | M10: =IF(OR(((ABS(I10-K10)/K10))>100%,((ABS(I10-K10)/K10))<-100%),"n.m.",((I10-K10)/ABS(K10))) -> 
A11: Other services | C11: ='Bell Wireline HIST p9'!G26 ->  | E11: ='Bell Wireline HIST p9'!N26 -> 75 | G11: =IF(OR(((ABS(C11-E11)/E11))>100%,((ABS(C11-E11)/E11))<-100%),"n.m.",((C11-E11)/ABS(E11))) ->  | I11: ='Bell Wireline HIST p9'!E26 ->  | K11: ='Bell Wireline HIST p9'!O26+'Bell Wireline HIST p9'!P26+'Bell Wireline HIST p9'!Q26+'Bell Wireline HIST p9'!N26 -> 289 | M11: =IF(OR(((ABS(I11-K11)/K11))>100%,((ABS(I11-K11)/K11))<-100%),"n.m.",((I11-K11)/ABS(K11))) -> 
A12: External service revenues | C12: ='Bell Wireline HIST p9'!G27 ->  | E12: ='Bell Wireline HIST p9'!N27 -> 2840 | G12: =IF(OR(((ABS(C12-E12)/E12))>100%,((ABS(C12-E12)/E12))<-100%),"n.m.",((C12-E12)/ABS(E12))) ->  | I12: ='Bell Wireline HIST p9'!E27 ->  | K12: ='Bell Wireline HIST p9'!O27+'Bell Wireline HIST p9'!P27+'Bell Wireline HIST p9'!Q27+'Bell Wireline HIST p9'!N27 -> 11314 | M12: =IF(OR(((ABS(I12-K12)/K12))>100%,((ABS(I12-K12)/K12))<-100%),"n.m.",((I12-K12)/ABS(K12))) -> 
A13: Inter-segment service revenues | C13: ='Bell Wireline HIST p9'!G28 ->  | E13: ='Bell Wireline HIST p9'!N28 -> 94 | G13: =IF(OR(((ABS(C13-E13)/E13))>=100%,((ABS(C13-E13)/E13))<=-100%),"n.m.",((C13-E13)/ABS(E13))) ->  | I13: ='Bell Wireline HIST p9'!E28 ->  | K13: ='Bell Wireline HIST p9'!O28+'Bell Wireline HIST p9'!P28+'Bell Wireline HIST p9'!Q28+'Bell Wireline HIST p9'!N28 -> 358 | M13: =IF(OR(((ABS(I13-K13)/K13))>=100%,((ABS(I13-K13)/K13))<=-100%),"n.m.",((I13-K13)/ABS(K13))) -> 
A14: Operating service revenues | C14: ='Bell Wireline HIST p9'!G29 ->  | E14: ='Bell Wireline HIST p9'!N29 -> 2934 | G14: =IF(OR(((ABS(C14-E14)/E14))>100%,((ABS(C14-E14)/E14))<-100%),"n.m.",((C14-E14)/ABS(E14))) ->  | I14: ='Bell Wireline HIST p9'!E29 ->  | K14: ='Bell Wireline HIST p9'!O29+'Bell Wireline HIST p9'!P29+'Bell Wireline HIST p9'!Q29+'Bell Wireline HIST p9'!N29 -> 11672 | M14: =IF(OR(((ABS(I14-K14)/K14))>100%,((ABS(I14-K14)/K14))<-100%),"n.m.",((I14-K14)/ABS(K14))) -> 
A15: Data | C15: ='Bell Wireline HIST p9'!G30 ->  | E15: ='Bell Wireline HIST p9'!N30 -> 132 | G15: =IF(OR(((ABS(C15-E15)/E15))>100%,((ABS(C15-E15)/E15))<-100%),"n.m.",((C15-E15)/ABS(E15))) ->  | I15: ='Bell Wireline HIST p9'!E30 ->  | K15: ='Bell Wireline HIST p9'!O30+'Bell Wireline HIST p9'!P30+'Bell Wireline HIST p9'!Q30+'Bell Wireline HIST p9'!N30 -> 463
A16: Equipment and other | C16: ='Bell Wireline HIST p9'!G31 ->  | E16: ='Bell Wireline HIST p9'!N31 -> 13 | I16: ='Bell Wireline HIST p9'!E31 ->  | K16: ='Bell Wireline HIST p9'!O31+'Bell Wireline HIST p9'!P31+'Bell Wireline HIST p9'!Q31+'Bell Wireline HIST p9'!N31 -> 43
A17: External product revenues | C17: ='Bell Wireline HIST p9'!G32 ->  | E17: ='Bell Wireline HIST p9'!N32 -> 145 | I17: ='Bell Wireline HIST p9'!E32 ->  | K17: ='Bell Wireline HIST p9'!O32+'Bell Wireline HIST p9'!P32+'Bell Wireline HIST p9'!Q32+'Bell Wireline HIST p9'!N32 -> 506
A18: Inter-segment product revenues | C18: ='Bell Wireline HIST p9'!G33 ->  | E18: ='Bell Wireline HIST p9'!N33 -> 0 | G18: n.m | H18: 0 | I18: ='Bell Wireline HIST p9'!E33 ->  | K18: ='Bell Wireline HIST p9'!O33+'Bell Wireline HIST p9'!P33+'Bell Wireline HIST p9'!Q33+'Bell Wireline HIST p9'!N33 -> 0 | M18: n.m
A19: Operating product revenues | C19: ='Bell Wireline HIST p9'!G34 ->  | E19: ='Bell Wireline HIST p9'!N34 -> 145 | H19: =(C19-F19)/F19 ->  | I19: ='Bell Wireline HIST p9'!E34 ->  | K19: ='Bell Wireline HIST p9'!O34+'Bell Wireline HIST p9'!P34+'Bell Wireline HIST p9'!Q34+'Bell Wireline HIST p9'!N34 -> 506
A20: Total external revenues | C20: ='Bell Wireline HIST p9'!G35 ->  | E20: ='Bell Wireline HIST p9'!N35 -> 2985 | H20: =(C20-F20)/F20 ->  | I20: ='Bell Wireline HIST p9'!E35 ->  | K20: ='Bell Wireline HIST p9'!O35+'Bell Wireline HIST p9'!P35+'Bell Wireline HIST p9'!Q35+'Bell Wireline HIST p9'!N35 -> 11820
A21: Total operating revenues | C21: ='Bell Wireline HIST p9'!G36 ->  | E21: ='Bell Wireline HIST p9'!N36 -> 3079 | H21: =(C21-F21)/F21 ->  | I21: ='Bell Wireline HIST p9'!E36 ->  | K21: ='Bell Wireline HIST p9'!O36+'Bell Wireline HIST p9'!P36+'Bell Wireline HIST p9'!Q36+'Bell Wireline HIST p9'!N36 -> 12178
A22: Operating costs | C22: ='Bell Wireline HIST p9'!G37 ->  | E22: ='Bell Wireline HIST p9'!N37 -> -1753 | H22: =(-C22+F22)/F22 ->  | I22: ='Bell Wireline HIST p9'!E37 ->  | K22: ='Bell Wireline HIST p9'!O37+'Bell Wireline HIST p9'!P37+'Bell Wireline HIST p9'!Q37+'Bell Wireline HIST p9'!N37 -> -6863
A23: Adjusted EBITDA | C23: ='Bell Wireline HIST p9'!G38 ->  | E23: ='Bell Wireline HIST p9'!N38 -> 1326 | H23: =(C23-F23)/F23 ->  | I23: ='Bell Wireline HIST p9'!E38 ->  | K23: ='Bell Wireline HIST p9'!O38+'Bell Wireline HIST p9'!P38+'Bell Wireline HIST p9'!Q38+'Bell Wireline HIST p9'!N38 -> 5315 | M23: 0
A24: Adjusted EBITDA margin | C24: ='Bell Wireline HIST p9'!G39 ->  | E24: ='Bell Wireline HIST p9'!N39 -> 0.431 | G24: =((ROUND(C24,3)-ROUND(E24,3))*100) ->  | H24: =(C24-F24)*100 ->  | I24: ='Bell Wireline HIST p9'!E39 ->  | K24: =K23/K21 -> 0.4364427656 | M24: =((ROUND(I24,3)-ROUND(K24,3))*100) -> 
A26: Capital expenditures | C26: ='Bell Wireline HIST p9'!G41 -> 1251 | E26: ='Bell Wireline HIST p9'!N41 -> 1141 | G26: =IF(OR(((ABS(E26-C26)/E26))>100%,((ABS(E26-C26)/E26))<-100%),"n.m.",((E26-C26)/ABS(E26))) -> -0.09640666082 | H26: =(-C26+F26)/F26 ->  | I26: ='Bell Wireline HIST p9'!E41 -> 3887 | K26: ='Bell Wireline HIST p9'!O41+'Bell Wireline HIST p9'!P41+'Bell Wireline HIST p9'!Q41+'Bell Wireline HIST p9'!N41 -> 3612 | M26: =IF(OR(((ABS(K26-I26)/K26))>100%,((ABS(K26-I26)/K26))<-100%),"n.m.",((K26-I26)/ABS(K26))) -> -0.0761351052
A27: Capital intensity | C27: ='Bell Wireline HIST p9'!G42 ->  | E27: ='Bell Wireline HIST p9'!N42 -> 0.370574862 | G27: =((ROUND(E27,3)-ROUND(C27,3))*100) ->  | H27: =(-(C27-F27)*100) ->  | I27: ='Bell Wireline HIST p9'!E42 ->  | K27: =K26/K21 -> 0.296600427 | M27: =((ROUND(K27,3)-ROUND(I27,3))*100) -> 
A28: Retail high-speed Internet subscribers(4)
A29: Retail net subscriber activations | C29: ='Bell Wireline HIST p9'!G44 -> 63465.86585 | E29: ='Bell Wireline HIST p9'!N44 -> 47618 | G29: =IF(OR(((ABS(C29-E29)/E29))>100%,((ABS(C29-E29)/E29))<-100%),"n.m.",((C29-E29)/ABS(E29))) -> 0.3328125047 | H29: =(C29-F29)/F29 ->  | I29: ='Bell Wireline HIST p9'!E44 -> 201762 | K29: ='Bell Wireline HIST p9'!O44+'Bell Wireline HIST p9'!P44+'Bell Wireline HIST p9'!Q44+'Bell Wireline HIST p9'!N44 -> 152285 | M29: =IF(OR(((ABS(I29-K29)/K29))>100%,((ABS(I29-K29)/K29))<-100%),"n.m.",((I29-K29)/ABS(K29))) -> 0.3248973963
A30: Retail subscribers EOP(A) (B) | C30: ='Bell Wireline HIST p9'!G45 -> 4258570 | E30: ='Bell Wireline HIST p9'!N45 -> 3861652.723 | G30: 0.1027843012 | H30: =(C30-F30)/F30 ->  | I30: ='Bell Wireline HIST p9'!E45 -> 4258570 | K30: ='Bell Wireline HIST p9'!L45 -> 3861652.723 | M30: 0.1027843012
A31: Retail TV subscribers(4)
A32: Retail net subscriber activations (losses) | C32: ='Bell Wireline HIST p9'!G47 -> 14183 | E32: ='Bell Wireline HIST p9'!N47 -> 6049 | G32: n.m. | H32: =-(C32-F32)/F32 ->  | I32: ='Bell Wireline HIST p9'!E47 -> 5148 | K32: ='Bell Wireline HIST p9'!O47+'Bell Wireline HIST p9'!P47+'Bell Wireline HIST p9'!Q47+'Bell Wireline HIST p9'!N47 -> 2530 | M32: n.m.
A33: Internet protocol television (IPTV) | C33: ='Bell Wireline HIST p9'!G48 -> 40209 | E33: ='Bell Wireline HIST p9'!N48 -> 29191 | G33: 0.3774451029 | H33: =(C33-F33)/F33 ->  | I33: ='Bell Wireline HIST p9'!E48 -> 94400 | K33: ='Bell Wireline HIST p9'!O48+'Bell Wireline HIST p9'!P48+'Bell Wireline HIST p9'!Q48+'Bell Wireline HIST p9'!N48 -> 76068 | M33: 0.2409948993
A34: Satellite | C34: =+'Bell Wireline HIST p9'!G49 -> -26026 | E34: =+'Bell Wireline HIST p9'!N49 -> -23142 | G34: -0.1246218996 | I34: ='Bell Wireline HIST p9'!E49 -> -89252 | K34: ='Bell Wireline HIST p9'!O49+'Bell Wireline HIST p9'!P49+'Bell Wireline HIST p9'!Q49+'Bell Wireline HIST p9'!N49 -> -73538 | M34: -0.2136854415
A35: Total retail subscribers EOP(A) (B) | C35: ='Bell Wireline HIST p9'!G50 -> 2751498 | E35: ='Bell Wireline HIST p9'!N50 -> 2735010.138 | G35: 0.006028446388 | H35: =(C35-F35)/F35 ->  | I35: ='Bell Wireline HIST p9'!E50 -> 2751498 | K35: ='Bell Wireline HIST p9'!L50 -> 2735010.138 | M35: 0.006028446388
A36: IPTV(A) (B) | C36: ='Bell Wireline HIST p9'!G51 -> 1988181 | E36: ='Bell Wireline HIST p9'!N51 -> 1882441.138 | G36: 0.05617166978 | H36: =(C36-F36)/F36 ->  | I36: ='Bell Wireline HIST p9'!E51 -> 1988181 | K36: ='Bell Wireline HIST p9'!L51 -> 1882441.138 | M36: 0.05617166978
A37: Satellite | C37: ='Bell Wireline HIST p9'!G52 -> 763317 | E37: ='Bell Wireline HIST p9'!N52 -> 852569 | G37: -0.104685955 | I37: ='Bell Wireline HIST p9'!E52 -> 763317 | K37: ='Bell Wireline HIST p9'!N52 -> 852569 | M37: -0.104685955
A38: Retail residential network access services (NAS)(4)
A39: Retail residential NAS lines net losses | C39: ='Bell Wireline HIST p9'!G54 -> -37878 | E39: ='Bell Wireline HIST p9'!N54 -> -40211 | G39: 0.05801895004 | H39: =-(C39-F39)/F39 ->  | I39: ='Bell Wireline HIST p9'!E54 -> -175788 | K39: ='Bell Wireline HIST p9'!O54+'Bell Wireline HIST p9'!P54+'Bell Wireline HIST p9'!Q54+'Bell Wireline HIST p9'!N54 -> -185327 | M39: 0.05147118337
A40: Retail residential NAS lines(A) (B) | C40: ='Bell Wireline HIST p9'!G55 -> 2190771 | E40: ='Bell Wireline HIST p9'!N55 -> 2298605 | G40: -0.04691280146 | H40: =(C40-F40)/F40 ->  | I40: ='Bell Wireline HIST p9'!E55 -> 2190771 | K40: ='Bell Wireline HIST p9'!N55 -> 2298605 | M40: -0.04691280146
A42: n.m. : not meaningful
A43: (A) | B43: In Q1 2022, as a result of the acquisition of EBOX and other related companies, our retail high-speed Internet, retail IPTV and retail residential NAS lines subscriber bases increased by 67,090, 9,025 and 3,456 subscribers, respectively.
A44: (B) | B44: In Q4 2022, as a result of the acquisition of Distributel Communications Limited (Distributel), our retail high-speed Internet, retail IPTV and retail residential NAS lines subscriber bases increased by 128,065, 2,315 and 64,498 subscribers, respectively.

Sheet Bell Wireline HIST p9 (hidden)
A1: CORPORATE
A2: ACTUAL
A3: ALL_DS | C3: All Data Sources
A4: All Posting Levels
A5: Canadian Dollar
A6: All Trading Partners | C6: TP_IC - All Intercos
A7: Year To Date | C7: TP_EXTERNAL - External (Third Party)
A8: Quarter to date
A10: WRLINE
E13: 2022.Q4 - 2022.Q4 | G13: 2021.Q4 - 2021.Q4
Q17: Bell Wireline - Historical Trend (2)
C21: (In millions of Canadian dollars, except where otherwise indicated) (unaudited) | E21: TOTAL 2022 | G21: Q4 22 | H21: Q3 22 | I21: Q2 22 | J21: Q1 22 | L21: TOTAL 2021 | N21: Q4 21 | O21: Q3 21 | P21: Q2 21 | Q21: Q1 21 | S21: CY CHECK | T21: PY CHECK
C22: Bell Wireline
C23: Operating revenues
A24: T4D0100 - Data Revenue (service) | B24: T401050 - Data Revenue (product) | C24: Data | E24: =((ROUND((_xll.EPMRetrieveData($A$1,$A$24,$A$2,$A$3,$A$4,$A$5,$C$7,$A$7,$A$10,E13)+_xll.EPMRetrieveData($A$1,$B$24,$A$2,$A$3,$A$4,$A$5,$C$7,$A$7,$A$10,E13))/1000000,0)-E30)) ->  | G24: =E24-H24-I24-J24 ->  | H24: 1987 | I24: 1974 | J24: 1953 | L24: 7871 | N24: 1986 | O24: 1976 | P24: 1944 | Q24: 1965 | S24: =SUM(G24:J24)=E24 ->  | T24: =Q24+P24+O24+N24=L24 -> TRUE
A25: =_xll.EPMOlapMemberO("[ACCOUNT].[PARENTH1].[T4D0200]","","T4D0200 - Voice Revenue (service)","","000") ->  | C25: Voice | E25: =ROUND((_xll.EPMRetrieveData($A$1, _xll.EPMMemberID($A$25), $A$2, $A$3, $A$4, $A$5, $C$7, $A$7, $A$10, E13))/1000000, 0) ->  | H25: 739 | I25: 756 | J25: 771 | L25: 3154 | N25: 779 | O25: 778 | P25: 794 | Q25: 803 | S25: =SUM(G25:J25)=E25 ->  | T25: =Q25+P25+O25+N25=L25 -> TRUE
A26: T401020 - Other Service Revenue | B26: T401070 - Other Product Revenue | C26: Other services | E26: =(ROUND((_xll.EPMRetrieveData($A$1,$A$26,$A$2,$A$3,$A$4,$A$5,$C$7,$A$7,$A$10,E13)+_xll.EPMRetrieveData($A$1,$B$26,$A$2,$A$3,$A$4,$A$5,$C$7,$A$7,$A$10,E13))/1000000,0)-E31)+1 ->  | H26: 77 | I26: 78 | J26: 77 | L26: 289 | N26: 75 | O26: 73 | P26: 67 | Q26: 74 | T26: TRUE
A27: T401070 | C27: External service revenues | E27: =SUM(E24:E26) ->  | H27: 2803 | I27: 2808 | J27: 2801 | L27: 11314 | N27: 2840 | O27: 2827 | P27: 2805 | Q27: 2842 | T27: TRUE
A28: T401010 | C28: Inter-segment service revenues | E28: =(ROUND(_xll.EPMRetrieveData($A$1,$A$28,$A$2,$A$3,$A$4,$A$5,$C$6,$A$7,$A$10,E13)/1000000,0))-1 ->  | H28: 104 | I28: 101 | J28: 102 | L28: 358 | N28: 94 | O28: 93 | P28: 86 | Q28: 85 | T28: TRUE
C29: Operating service revenues | E29: =E28+E27 ->  | H29: 2907 | I29: 2909 | J29: 2903 | L29: 11672 | N29: 2934 | O29: 2920 | P29: 2891 | Q29: 2927 | T29: TRUE
A30: T401050 | C30: Data | E30: =((ROUND(_xll.EPMRetrieveData($A$1,$A$30,$A$2,$A$3,$A$4,$A$5,$C$7,$A$7,$A$10,E13)/1000000,0))) ->  | H30: 130 | I30: 73 | J30: 99 | L30: 463 | N30: 132 | O30: 86 | P30: 101 | Q30: 144 | T30: TRUE
C31: Equipment and other | E31: =ROUND(_xll.EPMRetrieveData($A$1,$A$27,$A$2,$A$3,$A$4,$A$5,$C$7,$A$7,$A$10,E13)/1000000,0) ->  | H31: 9 | I31: 13 | J31: 11 | L31: 43 | N31: 13 | O31: 9 | P31: 11 | Q31: 10 | T31: TRUE
C32: External product revenues | E32: =E31+E30 ->  | H32: 139 | I32: 86 | J32: 110 | L32: 506 | N32: 145 | O32: 95 | P32: 112 | Q32: 154 | T32: TRUE
A33: T401040 | C33: Inter-segment product revenues | E33: =ROUND(_xll.EPMRetrieveData($A$1,$A$33,$A$2,$A$3,$A$4,$A$5,$C$6,$A$7,$A$10,E13)/1000000,0) ->  | H33: 0 | I33: 0 | J33: 0 | L33: 0 | N33: 0 | O33: 0 | P33: 0 | Q33: 0 | T33: TRUE
C34: Operating product revenues | E34: =E33+E32 ->  | H34: 139 | I34: 86 | J34: 110 | L34: 506 | N34: 145 | O34: 95 | P34: 112 | Q34: 154 | T34: TRUE
A35: t401000 | C35: Total external revenues | E35: =ROUND(_xll.EPMRetrieveData($A$1,$A$35,$A$2,$A$3,$A$4,$A$5,$C$7,$A$7,$A$10,E13)/1000000,0) ->  | H35: 2942 | I35: 2894 | J35: 2911 | L35: 11820 | N35: 2985 | O35: 2922 | P35: 2917 | Q35: 2996 | T35: TRUE
C36: Total operating revenues | E36: =E34+E29 ->  | H36: 3046 | I36: 2995 | J36: 3013 | L36: 12178 | N36: 3079 | O36: 3015 | P36: 3003 | Q36: 3081 | T36: TRUE
C37: Operating costs | E37: ='BCE Inc. Seg Info HIST p5'!E31 ->  | H37: -1729 | I37: -1680 | J37: -1646 | L37: -6863 | N37: -1753 | O37: -1682 | P37: -1710 | Q37: -1718 | T37: TRUE
C38: Adjusted EBITDA | E38: ='BCE Inc. Seg Info HIST p5'!E39 ->  | H38: 1317 | I38: 1315 | J38: 1367 | L38: 5315 | N38: 1326 | O38: 1333 | P38: 1293 | Q38: 1363 | T38: TRUE
C39: Adjusted EBITDA margin | E39: ='BCE Inc. Seg Info HIST p5'!E40 ->  | G39: ='BCE Inc. Seg Info HIST p5'!G40 ->  | H39: 0.432 | I39: 0.439 | J39: 0.454 | L39: 0.436 | N39: 0.431 | O39: 0.4421227197 | P39: 0.431 | Q39: 0.442
C41: Capital expenditures | E41: ='BCE Inc. Seg Info HIST p5'!E49 -> 3887 | G41: ='BCE Inc. Seg Info HIST p5'!G49 -> 1251 | H41: 1038 | I41: 910 | J41: ='BCE Inc. Seg Info HIST p5'!J49 -> 688 | K41: ='BCE Inc. Seg Info HIST p5'!K49 -> 0 | L41: ='BCE Inc. Seg Info HIST p5'!L49 -> 3612 | M41: ='BCE Inc. Seg Info HIST p5'!M49 -> 0 | N41: ='BCE Inc. Seg Info HIST p5'!N49 -> 1141 | O41: ='BCE Inc. Seg Info HIST p5'!O49 -> 884 | P41: ='BCE Inc. Seg Info HIST p5'!P49 -> 880 | Q41: ='BCE Inc. Seg Info HIST p5'!Q49 -> 707 | S41: TRUE | T41: TRUE
C42: Capital intensity | E42: ='BCE Inc. Seg Info HIST p5'!E50 ->  | G42: ='BCE Inc. Seg Info HIST p5'!G50 ->  | H42: 0.3407747866 | I42: 0.3038397329 | J42: ='BCE Inc. Seg Info HIST p5'!J50 -> 0.2283438433 | K42: ='BCE Inc. Seg Info HIST p5'!K50 ->  | L42: ='BCE Inc. Seg Info HIST p5'!L50 -> 0.296600427 | M42: ='BCE Inc. Seg Info HIST p5'!M50 ->  | N42: ='BCE Inc. Seg Info HIST p5'!N50 -> 0.370574862 | O42: ='BCE Inc. Seg Info HIST p5'!O50 -> 0.2932006633 | P42: ='BCE Inc. Seg Info HIST p5'!P50 -> 0.293040293 | Q42: ='BCE Inc. Seg Info HIST p5'!Q50 -> 0.229470951
C43: Retail high-speed Internet subscribers | S43: TRUE | T43: TRUE
C44: Retail net subscriber activations | E44: 201762 | G44: =E44-H44-I44-J44 -> 63465.86585 | H44: 89652 | I44: 22620 | J44: 26024.13415 | L44: 152285 | N44: 47618 | O44: 65779 | P44: 17680 | Q44: 21208 | S44: TRUE | T44: TRUE
C45: Retail subscribers EOP(A) (B) | E45: 4258570 | G45: =E45 -> 4258570 | H45: 4067038.858 | I45: 3977386.858 | J45: 3954766.858 | L45: 3861652.723 | N45: 3861652.723 | O45: 3814034.647 | P45: 3748255.647 | Q45: 3730576
C46: Retail TV subscribers | S46: TRUE | T46: TRUE
C47: Retail net subscriber activations (losses) | E47: 5148 | G47: =E47-H47-I47-J47 -> 14183 | H47: 10853 | I47: -11527 | J47: -8361 | L47: 2530 | N47: 6049 | O47: 10521 | P47: -4928 | Q47: -9112 | S47: TRUE | T47: TRUE
C48: IPTV | E48: 94400 | G48: =E48-H48-I48-J48 -> 40209 | H48: 38093 | I48: 3838 | J48: 12260 | L48: 76068 | N48: 29191 | O48: 31641 | P48: 4540 | Q48: 10696 | S48: TRUE | T48: TRUE
C49: Satellite | E49: -89252 | G49: =E49-H49-I49-J49 -> -26026 | H49: -27240 | I49: -15365 | J49: -20621 | L49: -73538 | N49: -23142 | O49: -21120 | P49: -9468 | Q49: -19808 | S49: TRUE | T49: TRUE
C50: Total retail subscribers EOP(A) (B) | E50: =SUM(E51:E52) -> 2751498 | G50: =E50 -> 2751498 | H50: 2734999.564 | I50: 2724147.138 | J50: 2735674.138 | L50: 2735010.138 | N50: 2735010.138 | O50: 2728961.138 | P50: 2718440.138 | Q50: 2723368
C51: IPTV(A) (B) | E51: 1988181 | G51: =E51 -> 1988181 | H51: 1945656.564 | I51: 1907564.138 | J51: 1903726.138 | L51: 1882441.138 | N51: 1882441.138 | O51: 1853250.138 | P51: 1821609.138 | Q51: 1817069
C52: Satellite | E52: 763317 | G52: =E52 -> 763317 | H52: 789343 | I52: 816583 | J52: 831948 | L52: 852569 | N52: 852569 | O52: 875711 | P52: 896831 | Q52: 906299
C53: Retail residential NAS | S53: TRUE | T53: TRUE
C54: Retail residential NAS lines net losses | E54: -175788 | G54: =E54-H54-I54-J54 -> -37878 | H54: -42853 | I54: -52712 | J54: -42345 | L54: -185327 | N54: -40211 | O54: -42755 | P54: -51292 | Q54: -51069 | S54: TRUE | T54: TRUE
C55: Retail residential NAS lines(A) (B) | E55: 2190771 | G55: =E55 -> 2190771 | H55: 2164151 | I55: 2207004 | J55: 2259716 | L55: 2298605 | N55: 2298605 | O55: 2338816 | P55: 2381571 | Q55: 2432863
C57: (A) | D57: In Q1 2022, as a result of the acquisition of EBOX and other related companies, our retail high-speed Internet, retail IPTV and retail residential NAS lines subscriber bases increased by 67,090, 9,025 and 3,456 subscribers, respectively.
C58: (B) | D58: In Q4 2022, as a result of the acquisition of Distributel, our retail high-speed Internet, retail IPTV and retail residential NAS lines subscriber bases increased by 128,065, 2,315 and 64,498 subscribers, respectively.
D66: External service revenues | E66: =SUM(E24:E26)=E27 ->  | H66: =SUM(H24:H26)=H27 -> TRUE | I66: =SUM(I24:I26)=I27 -> TRUE | J66: =SUM(J24:J26)=J27 -> TRUE | K66: TRUE | L66: TRUE | M66: TRUE | N66: TRUE | O66: TRUE | P66: TRUE | Q66: TRUE
D67: Operating service revenues | E67: =(E27+E28)=E29 ->  | H67: =(H27+H28)=H29 -> TRUE | I67: =(I27+I28)=I29 -> TRUE | J67: =(J27+J28)=J29 -> TRUE | K67: TRUE | L67: TRUE | M67: TRUE | N67: TRUE | O67: TRUE | P67: TRUE | Q67: TRUE
D68: External product revenues | E68: =(E30+E31)=E32 ->  | H68: =(H30+H31)=H32 -> TRUE | I68: =(I30+I31)=I32 -> TRUE | J68: =(J30+J31)=J32 -> TRUE | K68: TRUE | L68: TRUE | M68: TRUE | N68: TRUE | O68: TRUE | P68: TRUE | Q68: TRUE
D69: Total external revenues | E69: =(E27+E32)=E35 ->  | H69: =(H27+H32)=H35 -> TRUE | I69: =(I27+I32)=I35 -> TRUE | J69: =(J27+J32)=J35 -> TRUE | K69: TRUE | L69: TRUE | M69: TRUE | N69: TRUE | O69: TRUE | P69: TRUE | Q69: TRUE
D70: Total operating revenues | E70: =(E29+E34)=E36 ->  | H70: =(H29+H34)=H36 -> TRUE | I70: =(I29+I34)=I36 -> TRUE | J70: =(J29+J34)=J36 -> TRUE | K70: TRUE | L70: TRUE | M70: TRUE | N70: TRUE | O70: TRUE | P70: TRUE | Q70: TRUE
D71: Adjusted EBITDA | E71: =(E36+E37)=E38 ->  | H71: =(H36+H37)=H38 -> TRUE | I71: =(I36+I37)=I38 -> TRUE | J71: =(J36+J37)=J38 -> TRUE | K71: TRUE | L71: TRUE | M71: TRUE | N71: TRUE | O71: TRUE | P71: TRUE | Q71: TRUE

Sheet CTS HIST Info p9
M1: Indicateurs de Bell SCT – Tendance historique
C3: Cumul | H3: TOTAL
A4: (en millions de dollars canadiens, sauf indication contraire) (non audité) | C4: 2025 | E4: T2 25 | F4: T1 25 | H4: 2024 | J4: T4 24 | K4: T3 24 | L4: T2 24 | M4: T1 24
A5: Abonnés utilisant des téléphones mobiles
A6: Activations brutes d’abonnés | C6: 979182 | E6: 510597 | F6: 468585 | H6: 2351507 | J6: 680471 | K6: 588263 | L6: 575334 | M6: 507439
A7: Services postpayés | C7: 651688 | E7: 331438 | F7: 320250 | H7: 1641053 | J7: 510850 | K7: 374116 | L7: 389213 | M7: 366874
A8: Services prépayés | C8: 327494 | E8: 179159 | F8: 148335 | H8: 710454 | J8: 169621 | K8: 214147 | L8: 186121 | M8: 140565
A9: Activations (pertes) nettes d’abonnés | C9: 93883 | E9: 94479 | F9: -596 | H9: 309517 | J9: 51070 | K9: 102196 | L9: 131043 | M9: 25208
A10: Services postpayés | C10: 34949 | E10: 44547 | F10: -9598 | H10: 213408 | J10: 56550 | K10: 33111 | L10: 78500 | M10: 45247
A11: Services prépayés | C11: 58934 | E11: 49932 | F11: 9002 | H11: 96109 | J11: -5480 | K11: 69085 | L11: 52543 | M11: -20039
A12: Abonnés à la fin de la période (B) (C) | C12: 10382457 | E12: 10382457 | F12: 10287978 | H12: 10288574 | J12: 10288574 | K12: 10361720 | L12: 10337495 | M12: 10206452
A13: Services postpayés | C13: 9565385 | E13: 9565385 | F13: 9520838 | H13: 9530436 | J13: 9530436 | K13: 9473886 | L13: 9440775 | M13: 9362275
A14: Services prépayés (B) (C) | C14: 817072 | E14: 817072 | F14: 767140 | H14: 758138 | J14: 758138 | K14: 887834 | L14: 896720 | M14: 844177
A15: RMU combiné ($/mois) (B) (C) | C15: 57.35 | E15: 57.61 | F15: 57.08 | H15: 57.9 | J15: 57.15 | K15: 58.26 | L15: 58.04 | M15: 58.14
A16: Taux de désabonnement combiné (%) (moyen par mois) | C16: 0.0145 | E16: 0.0136 | F16: 0.0155 | H16: 0.0167 | J16: 0.0203 | K16: 0.0158 | L16: 0.0147 | M16: 0.0159
A17: Services postpayés | C17: 0.0113 | E17: 0.0106 | F17: 0.0121 | H17: 0.0133 | J17: 0.0166 | K17: 0.0128 | L17: 0.0118 | M17: 0.0121
A18: Services prépayés | C18: 0.0541 | E18: 0.0506 | F18: 0.0577 | H18: 0.0528 | J18: 0.0615 | K18: 0.0466 | L18: 0.046 | M18: 0.0574
A19: Activations d’abonnés utilisant des appareils mobiles
A20: Activations nettes d’abonnés | C20: 133486 | E20: 97502 | F20: 35984 | H20: 310882 | J20: 100343 | K20: 56216 | L20: 87917 | M20: 66406
A21: Abonnés à la fin de la période | C21: 3176916 | E21: 3176916 | F21: 3079414 | H21: 3043430 | J21: 3043430 | K21: 2943087 | L21: 2886871 | M21: 2798954
A22: Abonnés des services Internet haute vitesse de détail
A23: Activations nettes d’abonnés des services de détail | C23: 14514 | E23: 4999 | F23: 9515 | H23: 131521 | J23: 34187 | K23: 42415 | L23: 23841 | M23: 31078
A24: Abonnés des services de détail à la fin de la période (A) (C) | C24: 4421961 | E24: 4421961 | F24: 4416962 | H24: 4490896 | J24: 4490896 | K24: 4456709 | L24: 4520553 | M24: 4496712
A25: Abonnés des services de télé IP de détail
A26: (Pertes) activations nettes d’abonnés des services de télé IP de détail | C26: -31822 | E26: -15851 | F26: -15971 | H26: 21614 | J26: -444 | K26: 9197 | L26: -1313 | M26: 14174
A27: Abonnés des services de télé IP de détail à la fin de la période (A) (D) | C27: 2100690 | E27: 2100690 | F27: 2116541 | H27: 2132953 | J27: 2132953 | K27: 2133397 | L27: 2124200 | M27: 2084516
A28: SAR résidentiels de détail
A29: Pertes nettes d’abonnés des SAR résidentiels de détail | C29: -92130 | E29: -44700 | F29: -47430 | H29: -187426 | J29: -42591 | K29: -47674 | L29: -53250 | M29: -43911
A30: Abonnés des SAR résidentiels de détail (A) | C30: 1727911 | E30: 1727911 | F30: 1772611 | H30: 1834191 | J30: 1834191 | K30: 1876782 | L30: 1924456 | M30: 1977706
A32: (A) | B32: Au T1 2025, nous avons réduit notre clientèle d’abonnés des services Internet haute vitesse de détail, des services de télé IP de détail et des SAR résidentiels de détail de 80 666 abonnés, de 441 abonnés et de 14 150 abonnés, respectivement, au 31 mars 2025, car nous avons cessé de vendre de nouveaux forfaits des marques Distributel, Acanac, Oricom et B2B2C pour ces services. En outre, au début du T1 2025, nous avons réduit notre clientèle d'abonnés des services Internet haute vitesse de détail de 2 783 abonnés pour tenir compte des désactivations de clients de l’exercice précédent, à la suite d’un examen des comptes de nos abonnés.
A33: (B) | B33: Au T4 2024, nous avons retiré 124 216 abonnés des services prépayés utilisant des téléphones mobiles de Bell de notre clientèle d’abonnés des téléphones mobiles prépayés au 31 décembre 2024, car nous avons cessé de vendre de nouveaux forfaits pour ce service à compter de cette date.
A34: (C) | B34: Au T3 2024, nous avons retiré 77 971 abonnés des services prépayés utilisant des téléphones mobiles de Virgin Plus de notre clientèle d’abonnés des téléphones mobiles prépayés au 30 septembre 2024, car nous avons cessé de vendre de nouveaux forfaits pour ce service à compter de cette date. De plus, en raison d’une récente décision du CRTC visant les services d’accès Internet haute vitesse de gros, nous ne sommes plus en mesure de revendre les services d’accès Internet par câble à de nouveaux clients dans notre zone de couverture des services sur fil depuis le 12 septembre 2024 et, par conséquent, nous avons retiré l’ensemble des 106 259 abonnés existants des services de câblodistribution dans la zone de couverture des services sur fil de notre clientèle d’abonnés aux services d’accès Internet haute vitesse de détail à cette date.
A35: (D) | B35: Au T2 2024, nous avons augmenté le nombre d’abonnés des services de télé IP de détail de 40 997 pour aligner le calcul de la désactivation de nos services de télé en continu Télé Fibe sur celui de notre service de Télé Fibe traditionnel.

Sheet Net Debt & Bell other info p10
K1: BCE
K2: Dette nette et autres renseignements
A5: BCE – Dette nette et actions privilégiées
A6: (en millions de dollars canadiens, sauf indication contraire) (non audité)
I8: 30 juin | J8: 31 mars | K8: 31 décembre
I9: 2025 | J9: 2025 | K9: 2024
A11: Dette à long terme | I11: 32522 | J11: 33869 | K11: 32835
A12: Moins : 50 % de la dette subordonnée de rang inférieur | I12: -2146 | J12: -2225 | K12: 0
A13: Dette à court terme | I13: 5037 | J13: 5323 | K13: 7669
A14: 50 % des actions privilégiées | I14: 1712 | J14: 1740.5 | K14: 1767
A15: Trésorerie | I15: -507 | J15: -1049 | K15: -1572
A16: Équivalents de trésorerie | I16: -3 | J16: -3 | K16: 0
A17: Placements à court terme | I17: 0 | J17: 0 | K17: -400
A18: Dette nette (A) | I18: 36615 | J18: 37655.5 | K18: 40299
A19: Ratio de levier financier net (A) | I19: 3.47 | J19: 3.56 | K19: 3.81
A22: Informations sur les flux de trésorerie
A23: (en millions de dollars canadiens, sauf indication contraire) (non audité) | D23: T2 | E23: T2 | F23: Variation | G23: % de | H23: Cumul | I23: Cumul | J23: Variation | K23: % de
D24: 2025 | E24: 2024 | F24: ($) | G24: variation | H24: 2025 | I24: 2024 | J24: ($) | K24: variation
A25: Flux de trésorerie disponibles (FTD) (A) et FTD après paiement au titre des obligations locatives (A)
A26: Flux de trésorerie liés aux activités d’exploitation | D26: 1947 | E26: 2137 | F26: -190 | G26: -0.08890968648 | H26: 3518 | I26: 3269 | J26: 249 | K26: 0.07617008259
A27: Dépenses d’investissement | D27: -763 | E27: -978 | F27: 215 | G27: 0.2198364008 | H27: -1492 | I27: -1980 | J27: 488 | K27: 0.2464646465
A28: Dividendes en trésorerie payés sur actions privilégiées | D28: -38 | E28: -45 | F28: 7 | G28: 0.1555555556 | H28: -77 | I28: -91 | J28: 14 | K28: 0.1538461538
A29: Dividendes en trésorerie payés par des filiales aux détenteurs de participations ne donnant pas le contrôle | D29: 0 | E29: -28 | F29: 28 | G29: 1 | H29: -13 | I29: -42 | J29: 29 | K29: 0.6904761905
A30: Coûts liés aux acquisitions et autres payés | D30: 6 | E30: 11 | F30: -5 | G30: -0.4545454545 | H30: 14 | I30: 26 | J30: -12 | K30: -0.4615384615
A31: FTD | D31: 1152 | E31: 1097 | F31: 55 | G31: 0.05013673655 | H31: 1950 | I31: 1182 | J31: 768 | K31: 0.6497461929
A32: Paiement de capital au titre des obligations locatives | D32: -278 | E32: -270 | F32: -8 | G32: -0.02962962963 | H32: -582 | I32: -567 | J32: -15 | K32: -0.02645502646
A33: FTD après paiement au titre des obligation locatives | D33: 874 | E33: 827 | F33: 47 | G33: 0.05683192261 | H33: 1368 | I33: 615 | J33: 753 | K33: n.s.
A36: Informations sur les flux de trésorerie – Tendance historique
A37: (en millions de dollars canadiens, sauf indication contraire) (non audité) | D37: Cumul | E37: T2 | F37: T1 | G37: TOTAL | H37: T4 | I37: T3 | J37: T2 | K37: T1
D38: 2025 | E38: 2025 | F38: 2025 | G38: 2024 | H38: 2024 | I38: 2024 | J38: 2024 | K38: 2024
A39: FTD et FTD après paiement au titre des obligations locatives
A40: Flux de trésorerie liés aux activités d’exploitation | D40: 3518 | E40: 1947 | F40: 1571 | G40: 6988 | H40: 1877 | I40: 1842 | J40: 2137 | K40: 1132
A41: Dépenses d’investissement | D41: -1492 | E41: -763 | F41: -729 | G41: -3897 | H41: -963 | I41: -954 | J41: -978 | K41: -1002
A42: Dividendes en trésorerie payés sur actions privilégiées | D42: -77 | E42: -38 | F42: -39 | G42: -187 | H42: -53 | I42: -43 | J42: -45 | K42: -46
A43: Dividendes en trésorerie payés par des filiales aux détenteurs de participations ne donnant pas le contrôle | D43: -13 | E43: 0 | F43: -13 | G43: -68 | H43: -12 | I43: -14 | J43: -28 | K43: -14
A44: Coûts liés aux acquisitions et autres payés | D44: 14 | E44: 6 | F44: 8 | G44: 52 | H44: 25 | I44: 1 | J44: 11 | K44: 15
A45: FTD | D45: 1950 | E45: 1152 | F45: 798 | G45: 2888 | H45: 874 | I45: 832 | J45: 1097 | K45: 85
A46: Paiement de capital au titre des obligations locatives | D46: -582 | E46: -278 | F46: -304 | G46: -1142 | H46: -270 | I46: -305 | J46: -270 | K46: -297
A47: FTD après paiement au titre des obligation locatives | D47: 1368 | E47: 874 | F47: 494 | G47: 1746 | H47: 604 | I47: 527 | J47: 827 | K47: -212
A50: n.s. : non significatif
A51: (A) | B51: La dette nette, les flux de trésorerie disponibles et les flux de trésorerie disponibles après les paiements au titre d'obligations locatives sont des mesures financières non conformes aux PCGR, et le ratio de levier financier net est une mesure de gestion du capital. Voir la note 2.1 Mesures financières non conformes aux PCGR et la note‍ 2.4 Mesures de gestion du capital dans les notes annexes du présent rapport pour en savoir plus sur ces mesures.

Sheet BCE Inc. BS p11
F1: BCE
F2: États consolidés de la situation financière
B4: 30 juin | D4: 31 mars | F4: 31 décembre
A5: (en millions de dollars canadiens, sauf indication contraire) (non audité) | B5: 2025 | D5: 2025 | F5: 2024
A6: ACTIF
A7: Actifs courants
A8: Trésorerie | B8: 507 | D8: 1049 | F8: 1572
A9: Équivalents de trésorerie | B9: 3 | D9: 3 | F9: 0
A10: Placements à court terme | B10: 0 | D10: 0 | F10: 400
A11: Créances clients et autres débiteurs | B11: 4011 | D11: 4042 | F11: 4489
A12: Stocks | B12: 453 | D12: 422 | F12: 420
A13: Actifs sur contrats | B13: 485 | D13: 495 | F13: 477
A14: Coûts des contrats | B14: 713 | D14: 753 | F14: 702
A15: Charges payées d’avance | B15: 399 | D15: 344 | F15: 259
A16: Autres actifs courants | B16: 409 | D16: 593 | F16: 524
A17: Actifs détenus en vue de la vente | B17: 87 | D17: 79 | F17: 80
A18: Total des actifs courants | B18: 7067 | D18: 7780 | F18: 8923
A19: Actifs non courants
A20: Actifs sur contrats | B20: 259 | D20: 279 | F20: 282
A21: Coûts des contrats | B21: 955 | D21: 911 | F21: 888
A22: Immobilisations corporelles | B22: 29520 | D22: 29777 | F22: 30001
A23: Immobilisations incorporelles | B23: 16737 | D23: 16817 | F23: 16786
A24: Actifs d’impôt différé | B24: 138 | D24: 152 | F24: 136
A25: Participations dans des entreprises associées et des coentreprises | B25: 335 | D25: 337 | F25: 341
A26: Actifs au titre des avantages postérieurs à l’emploi | B26: 3710 | D26: 3647 | F26: 3578
A27: Autres actifs non courants | B27: 2238 | D27: 2292 | F27: 2289
A28: Goodwill | B28: 10175 | D28: 10170 | F28: 10261
A29: Total des actifs non courants | B29: 64067 | D29: 64382 | F29: 64562
A30: Total de l’actif | B30: 71134 | D30: 72162 | F30: 73485
A31: PASSIF
A32: Passifs courants
A33: Dettes fournisseurs et autres passifs | B33: 4288 | D33: 4134 | F33: 4507
A34: Passifs sur contrats | B34: 677 | D34: 773 | F34: 774
A35: Intérêts à payer | B35: 419 | D35: 284 | F35: 392
A36: Dividendes à payer | B36: 425 | D36: 944 | F36: 933
A37: Passifs d’impôt exigible | B37: 229 | D37: 137 | F37: 42
A38: Dette à court terme | B38: 5037 | D38: 5323 | F38: 7669
A39: Passifs détenus en vue de la vente | B39: 500 | D39: 525 | F39: 529
A40: Total des passifs courants | B40: 11575 | D40: 12120 | F40: 14846
A41: Passifs non courants
A42: Passifs sur contrats | B42: 374 | D42: 369 | F42: 350
A43: Dette à long terme | B43: 32522 | D43: 33869 | F43: 32835
A44: Passifs d’impôt différé | B44: 5516 | D44: 5335 | F44: 5244
A45: Obligations au titre des avantages postérieurs à l’emploi | B45: 1154 | D45: 1189 | F45: 1204
A46: Autres passifs non courants | B46: 1616 | D46: 1661 | F46: 1646
A47: Total des passifs non courants | B47: 41182 | D47: 42423 | F47: 41279
A48: Total du passif | B48: 52757 | D48: 54543 | F48: 56125
A50: CAPITAUX PROPRES
A51: Capitaux propres attribuables aux actionnaires de BCE
A52: Actions privilégiées | B52: 3424 | D52: 3481 | F52: 3533
A53: Actions ordinaires | B53: 21493 | D53: 21174 | F53: 20860
A54: Surplus d’apport | B54: 1295 | D54: 1271 | F54: 1278
A55: Cumul des autres éléments du bénéfice global (de la perte globale) | B55: 240 | D55: 45 | F55: -159
A56: Déficit | B56: -8385 | D56: -8638 | F56: -8441
A57: Total des capitaux propres attribuables aux actionnaires de BCE | B57: 18067 | D57: 17333 | F57: 17071
A58: Participations ne donnant pas le contrôle | B58: 310 | D58: 286 | F58: 289
A59: Total des capitaux propres | B59: 18377 | D59: 17619 | F59: 17360
A60: Total du passif et des capitaux propres | B60: 71134 | D60: 72162 | F60: 73485
A61: Nombre d’actions ordinaires en circulation (en millions) | B61: 932.5 | D61: 921.8 | F61: 912.3

Sheet BCE Inc. CF Summary p12
L1: BCE
L2: Données consolidées sur les flux de trésorerie
B4: T2 | D4: T2 | F4: Variation | H4: Cumul | J4: Cumul | L4: Variation
A5: (en millions de dollars canadiens, sauf indication contraire) (non audité) | B5: 2025 | D5: 2024 | F5: ($) | H5: 2025 | J5: 2024 | L5: ($)
A7: Bénéfice net | B7: 644 | D7: 604 | F7: 40 | H7: 1327 | J7: 1061 | L7: 266
A8: Ajustements de rapprochement du bénéfice net et des flux de trésorerie liés aux activités d’exploitation
A9: Coûts liés aux indemnités de départ, aux acquisitions et autres | B9: 41 | D9: 22 | F9: 19 | H9: 288 | J9: 251 | L9: 37
A10: Amortissements | B10: 1287 | D10: 1270 | F10: 17 | H10: 2559 | J10: 2532 | L10: 27
A11: Coût des régimes d’avantages postérieurs à l’emploi | B11: 19 | D11: 31 | F11: -12 | H11: 48 | J11: 75 | L11: -27
A12: Charges d’intérêts nettes | B12: 427 | D12: 401 | F12: 26 | H12: 824 | J12: 785 | L12: 39
A13: Perte de valeur d’actifs | B13: 8 | D13: 60 | F13: -52 | H13: 17 | J13: 73 | L13: -56
A14: Pertes sur placements | B14: 8 | D14: 2 | F14: 6 | H14: 10 | J14: 8 | L14: 2
A15: Pertes nettes sur participations mises en équivalence dans des entreprises associées et des coentreprises | B15: 0 | D15: 93 | F15: -93 | H15: 0 | J15: 93 | L15: -93
A16: Impôt sur le résultat | B16: 240 | D16: 231 | F16: 9 | H16: 497 | J16: 397 | L16: 100
A17: Cotisations aux régimes d’avantages postérieurs à l’emploi | B17: -12 | D17: -10 | F17: -2 | H17: -30 | J17: -28 | L17: -2
A18: Paiements en vertu de régimes d’autres avantages postérieurs à l’emploi | B18: -15 | D18: -15 | F18: 0 | H18: -29 | J18: -31 | L18: 2
A19: Coûts liés aux indemnités de départ et autres payés | B19: -198 | D19: -98 | F19: -100 | H19: -279 | J19: -144 | L19: -135
A20: Intérêts payés | B20: -308 | D20: -387 | F20: 79 | H20: -869 | J20: -835 | L20: -34
A21: Impôt sur le résultat payé (après remboursements) | B21: -50 | D21: -131 | F21: 81 | H21: -124 | J21: -466 | L21: 342
A22: Coûts liés aux acquisitions et autres payés | B22: -6 | D22: -11 | F22: 5 | H22: -14 | J22: -26 | L22: 12
A23: Variation nette des actifs et des passifs d’exploitation | B23: -138 | D23: 75 | F23: -213 | H23: -707 | J23: -476 | L23: -231
A24: Flux de trésorerie liés aux activités d’exploitation | B24: 1947 | D24: 2137 | F24: -190 | H24: 3518 | J24: 3269 | L24: 249
A25: Dépenses d’investissement | B25: -763 | D25: -978 | F25: 215 | H25: -1492 | J25: -1980 | L25: 488
A26: Dividendes en trésorerie payés sur actions privilégiées | B26: -38 | D26: -45 | F26: 7 | H26: -77 | J26: -91 | L26: 14
A27: Dividendes en trésorerie payés par des filiales aux détenteurs de participations ne donnant pas le contrôle | B27: 0 | D27: -28 | F27: 28 | H27: -13 | J27: -42 | L27: 29
A28: Coûts liés aux acquisitions et autres payés | B28: 6 | D28: 11 | F28: -5 | H28: 14 | J28: 26 | L28: -12
A29: Flux de trésorerie disponibles | B29: 1152 | D29: 1097 | F29: 55 | H29: 1950 | J29: 1182 | L29: 768
A30: Paiement de capital au titre des obligations locatives | B30: -278 | D30: -270 | F30: -8 | H30: -582 | J30: -567 | L30: -15
A31: Flux de trésorerie disponibles après les paiements au titre des obligations locatives | B31: 874 | D31: 827 | F31: 47 | H31: 1368 | J31: 615 | L31: 753
A32: Acquisitions d’entreprises | B32: -24 | D32: -435 | F32: 411 | H32: -23 | J32: -517 | L32: 494
A33: Cessions d’entreprises | B33: 36 | D33: 0 | F33: 36 | H33: 38 | J33: 0 | L33: 38
A34: Coûts liés aux acquisitions et autres payés | B34: -6 | D34: -11 | F34: 5 | H34: -14 | J34: -26 | L34: 12
A35: Augmentation (diminution) des placements à court terme | B35: 0 | D35: -50 | F35: 50 | H35: 400 | J35: 250 | L35: 150
A36: Licences de spectre | B36: 0 | D36: -414 | F36: 414 | H36: 0 | J36: -518 | L36: 518
A37: Autres activités d’investissement | B37: 1 | D37: -11 | F37: 12 | H37: -12 | J37: -21 | L37: 9
A38: Augmentation (diminution) des effets à payer | B38: 405 | D38: 404 | F38: 1 | H38: -726 | J38: 1383 | L38: -2109
A39: Émission de titres d’emprunt à long terme | B39: 318 | D39: 1617 | F39: -1299 | H39: 4755 | J39: 3808 | L39: 947
A40: Remboursements sur la dette à long terme, déduction faite des paiements de capital au titre des obligations locatives | B40: -1447 | D40: -255 | F40: -1192 | H40: -5399 | J40: -2071 | L40: -3328
A41: Achat d’actions pour le règlement de paiements fondés sur des actions | B41: -32 | D41: -40 | F41: 8 | H41: -96 | J41: -144 | L41: 48
A42: Rachat d’actions privilégiées | B42: -39 | D42: -38 | F42: -1 | H42: -76 | J42: -76 | L42: 0
A43: Dividendes en trésorerie payés sur actions ordinaires | B43: -608 | D43: -910 | F43: 302 | H43: -1210 | J43: -1793 | L43: 583
A44: Autres activités de financement | B44: -20 | D44: 4 | F44: -24 | H44: -67 | J44: -14 | L44: -53
B45: -1416 | D45: -139 | F45: -1277 | H45: -2430 | J45: 261 | L45: -2691
A46: (Diminution) augmentation nette de la trésorerie | B46: -542 | D46: 609 | F46: -1151 | H46: -1065 | J46: 851 | L46: -1916
A47: Trésorerie au début de la période | B47: 1049 | D47: 789 | F47: 260 | H47: 1572 | J47: 547 | L47: 1025
A48: Trésorerie à la fin de la période | B48: 507 | D48: 1398 | F48: -891 | H48: 507 | J48: 1398 | L48: -891
A49: Augmentation nette des équivalents de trésorerie | B49: 0 | D49: 79 | F49: -79 | H49: 3 | J49: 25 | L49: -22
A50: Équivalents de trésorerie au début de la période | B50: 3 | D50: 171 | F50: -168 | H50: 0 | J50: 225 | L50: -225
A51: Équivalents de trésorerie à la fin de la période | B51: 3 | D51: 250 | F51: -247 | H51: 3 | J51: 250 | L51: -247

Sheet BCE Inc. CF HIST p13
L2: BCE
L3: Données consolidées sur les flux de trésorerie – Tendance historique
A5: (en millions de dollars canadiens, sauf indication contraire) (non audité) | B5: Cumul 2025 | D5: T2 25 | E5: T1 25 | G5: TOTAL 2024 | I5: T4 24 | J5: T3 24 | K5: T2 24 | L5: T1 24
A7: Bénéfice net (perte nette) | B7: 1327 | D7: 644 | E7: 683 | G7: 375 | I7: 505 | J7: -1191 | K7: 604 | L7: 457
A8: Ajustements de rapprochement du bénéfice net (de la perte nette) et des flux de trésorerie liés aux activités d’exploitation
A9: Coûts liés aux indemnités de départ, aux acquisitions et autres | B9: 288 | D9: 41 | E9: 247 | G9: 454 | I9: 154 | J9: 49 | K9: 22 | L9: 229
A10: Amortissements | B10: 2559 | D10: 1287 | E10: 1272 | G10: 5041 | I10: 1250 | J10: 1259 | K10: 1270 | L10: 1262
A11: Coût des régimes d’avantages postérieurs à l’emploi | B11: 48 | D11: 19 | E11: 29 | G11: 142 | I11: 33 | J11: 34 | K11: 31 | L11: 44
A12: Charges d’intérêts nettes | B12: 824 | D12: 427 | E12: 397 | G12: 1590 | I12: 400 | J12: 405 | K12: 401 | L12: 384
A13: Perte de valeur d’actifs | B13: 17 | D13: 8 | E13: 9 | G13: 2190 | I13: 4 | J13: 2113 | K13: 60 | L13: 13
A14: Pertes (profits) sur placements | B14: 10 | D14: 8 | E14: 2 | G14: -57 | I14: 1 | J14: -66 | K14: 2 | L14: 6
A15: Pertes nettes sur participations mises en équivalence dans des entreprises associées et des coentreprises | B15: 0 | D15: 0 | E15: 0 | G15: 247 | I15: 0 | J15: 154 | K15: 93 | L15: 0
A16: Impôt sur le résultat | B16: 497 | D16: 240 | E16: 257 | G16: 577 | I16: 175 | J16: 5 | K16: 231 | L16: 166
A17: Cotisations aux régimes d’avantages postérieurs à l’emploi | B17: -30 | D17: -12 | E17: -18 | G17: -52 | I17: -12 | J17: -12 | K17: -10 | L17: -18
A18: Paiements en vertu de régimes d’autres avantages postérieurs à l’emploi | B18: -29 | D18: -15 | E18: -14 | G18: -61 | I18: -14 | J18: -16 | K18: -15 | L18: -16
A19: Coûts liés aux indemnités de départ et autres payés | B19: -279 | D19: -198 | E19: -81 | G19: -330 | I19: -57 | J19: -129 | K19: -98 | L19: -46
A20: Intérêts payés | B20: -869 | D20: -308 | E20: -561 | G20: -1759 | I20: -392 | J20: -532 | K20: -387 | L20: -448
A21: Impôt sur le résultat payé (après remboursements) | B21: -124 | D21: -50 | E21: -74 | G21: -783 | I21: -221 | J21: -96 | K21: -131 | L21: -335
A22: Coûts liés aux acquisitions et autres payés | B22: -14 | D22: -6 | E22: -8 | G22: -52 | I22: -25 | J22: -1 | K22: -11 | L22: -15
A23: Variation nette des actifs et des passifs d’exploitation | B23: -707 | D23: -138 | E23: -569 | G23: -534 | I23: 76 | J23: -134 | K23: 75 | L23: -551
A24: Flux de trésorerie liés aux activités d’exploitation | B24: 3518 | D24: 1947 | E24: 1571 | G24: 6988 | I24: 1877 | J24: 1842 | K24: 2137 | L24: 1132
A25: Dépenses d’investissement | B25: -1492 | D25: -763 | E25: -729 | G25: -3897 | I25: -963 | J25: -954 | K25: -978 | L25: -1002
A26: Dividendes en trésorerie payés sur actions privilégiées | B26: -77 | D26: -38 | E26: -39 | G26: -187 | I26: -53 | J26: -43 | K26: -45 | L26: -46
A27: Dividendes en trésorerie payés par des filiales aux détenteurs de participations ne donnant pas le contrôle | B27: -13 | D27: 0 | E27: -13 | G27: -68 | I27: -12 | J27: -14 | K27: -28 | L27: -14
A28: Coûts liés aux acquisitions et autres payés | B28: 14 | D28: 6 | E28: 8 | G28: 52 | I28: 25 | J28: 1 | K28: 11 | L28: 15
A29: Flux de trésorerie disponibles | B29: 1950 | D29: 1152 | E29: 798 | G29: 2888 | I29: 874 | J29: 832 | K29: 1097 | L29: 85
A30: Paiement de capital au titre des obligations locatives | B30: -582 | D30: -278 | E30: -304 | G30: -1142 | I30: -270 | J30: -305 | K30: -270 | L30: -297
A31: Flux de trésorerie disponibles après les paiements au titre des obligations locatives | B31: 1368 | D31: 874 | E31: 494 | G31: 1746 | I31: 604 | J31: 527 | K31: 827 | L31: -212
A32: Acquisitions d’entreprises | B32: -23 | D32: -24 | E32: 1 | G32: -624 | I32: -34 | J32: -73 | K32: -435 | L32: -82
A33: Cessions d’entreprises | B33: 38 | D33: 36 | E33: 2 | G33: 0 | I33: 0 | J33: 0 | K33: 0 | L33: 0
A34: Coûts liés aux acquisitions et autres payés | B34: -14 | D34: -6 | E34: -8 | G34: -52 | I34: -25 | J34: -1 | K34: -11 | L34: -15
A35: Diminution (augmentation) des placements à court terme | B35: 400 | D35: 0 | E35: 400 | G35: 600 | I35: 350 | J35: 0 | K35: -50 | L35: 300
A36: Licences de spectre | B36: 0 | D36: 0 | E36: 0 | G36: -531 | I36: 0 | J36: -13 | K36: -414 | L36: -104
A37: Autres activités d’investissement | B37: -12 | D37: 1 | E37: -13 | G37: 14 | I37: 43 | J37: -8 | K37: -11 | L37: -10
A38: (Diminution) augmentation des effets à payer | B38: -726 | D38: 405 | E38: -1131 | G38: 1945 | I38: -201 | J38: 763 | K38: 404 | L38: 979
A39: Émission de titres d’emprunt à long terme | B39: 4755 | D39: 318 | E39: 4437 | G39: 3834 | I39: 16 | J39: 10 | K39: 1617 | L39: 2191
A40: Remboursements sur la dette à long terme, exclusion faite des paiements de capital au titre d'obligations locatives | B40: -5399 | D40: -1447 | E40: -3952 | G40: -2161 | I40: -52 | J40: -38 | K40: -255 | L40: -1816
A41: Achat d’actions pour le règlement de paiements fondés sur des actions | B41: -96 | D41: -32 | E41: -64 | G41: -235 | I41: -49 | J41: -42 | K41: -40 | L41: -104
A42: Rachat d’actions privilégiées | B42: -76 | D42: -39 | E42: -37 | G42: -92 | I42: -16 | J42: 0 | K42: -38 | L42: -38
A43: Dividendes en trésorerie payés sur actions ordinaires | B43: -1210 | D43: -608 | E43: -602 | G43: -3613 | I43: -910 | J43: -910 | K43: -910 | L43: -883
A44: Autres activités de financement | B44: -67 | D44: -20 | E44: -47 | G44: -31 | I44: -14 | J44: -3 | K44: 4 | L44: -18
B45: -2430 | D45: -1416 | E45: -1014 | G45: -946 | I45: -892 | J45: -315 | K45: -139 | L45: 400
A46: (Diminution) augmentation nette de la trésorerie | B46: -1065 | D46: -542 | E46: -523 | G46: 1025 | I46: -288 | J46: 462 | K46: 609 | L46: 242
A47: Trésorerie au début de la période | B47: 1572 | D47: 1049 | E47: 1572 | G47: 547 | I47: 1860 | J47: 1398 | K47: 789 | L47: 547
A48: Trésorerie à la fin de la période | B48: 507 | D48: 507 | E48: 1049 | G48: 1572 | I48: 1572 | J48: 1860 | K48: 1398 | L48: 789
A49: Augmentation (diminution) nette des équivalents de trésorerie | B49: 3 | D49: 0 | E49: 3 | G49: -225 | I49: 0 | J49: -250 | K49: 79 | L49: -54
A50: Équivalents de trésorerie au début de la période | B50: 0 | D50: 3 | E50: 0 | G50: 225 | I50: 0 | J50: 250 | K50: 171 | L50: 225
A51: Équivalents de trésorerie à la fin de la période | B51: 3 | D51: 3 | E51: 3 | G51: 0 | I51: 0 | J51: 0 | K51: 250 | L51: 171

Sheet Accomp Notes p14

Sheet Accomp Notes p15

Sheet Accomp Notes p16

Sheet Accomp Notes p17

Sheet Accomp Notes p18
